Workbook

Sheet Лист1
A1: Анализ удельных показателей кадастровой стоимости земельных участков по видам разрешенного использования по населенным пунктам Смоленского района и средних значений удельных показателей кадастровой стоимости земельных участков по Смоленскому району и близлежайшим районам по результатам переоценки кадастровой стоимости земель поселений 2009 года и планируемой переоценки кадастровой стоимости земель поселений 2015 года
A3: № п/п | B3: Наименование населенного пункта | D3: УПКСЗ по видам разрешенного использования
C4: 1 многоэтажки | F4: 2 ИЖС | L4: 3 гаражи, автостоянки | Q4: 4 сады, дачи, огороды | T4: 5 торговля, общ.питание | Y4: 6 гостиницы | AB4: 7 офисы, деловое и ком назн | AG4: 8 рекреация | AL4: 9 производ и пром | AT4: 13 пол ископ, дороги, связь | AY4: 14 особо охраняемые | BB4: 15 с/х использ | BE4: 17 админ, образов, здравоохр.
C5: 2009 | D5: 2015 | E5: % | F5: 2009 | G5: 0.04 | H5: 2015 | I5: 0.04 | J5: 0.02 | K5: % окончат | L5: 2009 | M5: 0.03 | N5: 2015 | O5: 0.02 | P5: % | Q5: 2009 | R5: 2015 | S5: % | T5: 2009 | U5: 0.11 | V5: 2015 | W5: 0.06 | X5: % | Y5: 2009 | Z5: 2015 | AA5: % | AB5: 2009 | AC5: 0.015 | AD5: 2015 | AE5: 0.009 | AF5: % | AG5: 2009 | AH5: 0.023 | AI5: 2015 | AJ5: 0.02 | AK5: % | AL5: 2009 | AM5: 0.07 | AN5: 2015 | AR5: 0.06 | AS5: % | AT5: 2009 | AV5: 2015 | AX5: % | AY5: 2009 | AZ5: 2015 | BA5: % | BB5: 2009 | BC5: 2015 | BD5: % | BE5: 2009 | BF5: 2015 | BG5: %
A6: 1 | B6: 2 | C6: 5 | D6: 6 | E6: 7 | F6: 8 | H6: 9 | K6: 10 | L6: 11 | N6: 12 | P6: 13 | Q6: 14 | R6: 15 | S6: 16 | T6: 17 | V6: 18 | X6: 19 | Y6: 20 | Z6: 21 | AA6: 22 | AB6: 23 | AD6: 24 | AE6: =AD11*0.01*1000 -> 0 | AF6: 25 | AG6: 26 | AI6: 27 | AK6: 28 | AL6: 29 | AN6: 30 | AO6: 14 | AP6: 15 | AQ6: 16 | AS6: 31 | AT6: 32 | AV6: 33 | AX6: 34 | AY6: 35 | AZ6: 36 | BA6: 37 | BB6: 38 | BC6: 39 | BD6: 40 | BE6: 41 | BF6: 42 | BG6: 43
A7: 5 | B7: с Смоленское | C7: 192.89 | D7: 1027.37 | E7: =D7/C7*100 -> 532.6196278 | F7: 72.38 | G7: =F7*0.03*1000 -> 2171.4 | H7: 158.84 | I7: =H7*0.03*1000 -> 4765.2 | J7: =H7*0.02*1000 -> 3176.8 | K7: =J7/G7*100 -> 146.301925 | L7: 492.52 | M7: =L7*0.03*100 -> 1477.56 | N7: 1213.17 | O7: =N7*0.02*100 -> 2426.34 | P7: =O7/M7*100 -> 164.2126208 | Q7: 62.31 | R7: 98.65 | S7: =R7/Q7*100 -> 158.3212967 | T7: 629.99 | U7: =T7*0.25*100 -> 15749.75 | V7: 1514.49 | W7: =V7*0.12*100 -> 18173.88 | X7: =W7/U7*100 -> 115.3915459 | Y7: 141.09 | Z7: 0 | AA7: =Z7/Y7*100 -> 0 | AB7: 591.9 | AC7: =AB7*0.015*1000 -> 8878.5 | AD7: 1311.6 | AE7: =AD7*0.009*1000 -> 11804.4 | AF7: =AE7/AC7*100 -> 132.954891 | AG7: 220.71 | AH7: =AG7*0.023*1000 -> 5076.33 | AI7: 0 | AJ7: =AI7*0.02*1000 -> 0 | AK7: =AJ7/AH7*100 -> 0 | AL7: 189.76 | AM7: =AL7*0.07*1000 -> 13283.2 | AN7: 387.94 | AO7: - | AP7: - | AQ7: - | AR7: =AN7*0.06*1000 -> 23276.4 | AS7: =AR7/AM7*100 -> 175.2318718 | AT7: 68.77 | AV7: 284.86 | AX7: =AV7/AT7*100 -> 414.2213174 | AY7: 0.29 | AZ7: 0.29 | BA7: =AZ7/AY7*100 -> 100 | BB7: 3 | BC7: 2.92 | BD7: =BC7/BB7*100 -> 97.33333333 | BE7: 591.9 | BF7: 653.92 | BG7: =BF7/BE7*100 -> 110.4781213
A8: 1 | B8: п Верх-Обский | C8: 192.89 | D8: 451.08 | E8: =D8/C8*100 -> 233.8534916 | F8: 33.69 | G8: =F8*0.04*1000 -> 1347.6 | H8: 69.74 | I8: =H8*0.04*1000 -> 2789.6 | J8: =H8*0.02*1000 -> 1394.8 | K8: =J8/G8*100 -> 103.502523 | L8: 286.73 | M8: =L8*0.03*100 -> 860.19 | N8: 532.65 | O8: =N8*0.02*100 -> 1065.3 | P8: =O8/M8*100 -> 123.844732 | Q8: 62.31 | R8: 0 | S8: =R8/Q8*100 -> 0 | T8: 289.99 | U8: =T8*0.11*100 -> 3189.89 | V8: 664.95 | W8: =V8*0.06*100 -> 3989.7 | X8: =W8/U8*100 -> 125.0732784 | Y8: 141.09 | Z8: 0 | AA8: =Z8/Y8*100 -> 0 | AB8: 272.45 | AC8: =AB8*0.015*1000 -> 4086.75 | AD8: 575.87 | AE8: =AD8*0.009*1000 -> 5182.83 | AF8: =AE8/AC8*100 -> 126.820334 | AG8: 220.71 | AH8: =AG8*0.023*1000 -> 5076.33 | AI8: 548.29 | AJ8: =AI8*0.02*1000 -> 10965.8 | AK8: =AJ8/AH8*100 -> 216.0182652 | AL8: 87.35 | AM8: =AL8*0.07*1000 -> 6114.5 | AN8: 170.33 | AO8: - | AP8: - | AQ8: - | AR8: =AN8*0.06*1000 -> 10219.8 | AS8: =AR8/AM8*100 -> 167.140404 | AT8: 31.66 | AV8: 125.07 | AX8: =AV8/AT8*100 -> 395.0410613 | AY8: 0.29 | AZ8: 0 | BA8: =AZ8/AY8*100 -> 0 | BB8: 3 | BC8: 2.92 | BD8: =BC8/BB8*100 -> 97.33333333 | BE8: 272.45 | BF8: 287.11 | BG8: =BF8/BE8*100 -> 105.3808038
A9: 2 | B9: п Кировский | C9: 192.89 | D9: 545.25 | E9: 282.6740629 | F9: 33.51 | G9: =F9*0.04*1000 -> 1340.4 | H9: 84.3 | I9: =H9*0.04*1000 -> 3372 | J9: 1686 | K9: =J9/G9*100 -> 125.7833483 | L9: 286.73 | M9: =L9*0.03*100 -> 860.19 | N9: 643.86 | O9: =N9*0.02*100 -> 1287.72 | P9: =O9/M9*100 -> 149.7018101 | Q9: 62.31 | R9: 0 | S9: 0 | T9: 288.44 | U9: =T9*0.11*100 -> 3172.84 | V9: 803.77 | W9: =V9*0.06*100 -> 4822.62 | X9: =W9/U9*100 -> 151.9969491 | Y9: 191.09 | Z9: 0 | AA9: 0 | AB9: 271 | AC9: =AB9*0.015*1000 -> 4065 | AD9: 696.1 | AE9: =AD9*0.009*1000 -> 6264.9 | AF9: =AE9/AC9*100 -> 154.1180812 | AG9: 220.71 | AH9: =AG9*0.023*1000 -> 5076.33 | AI9: 662.76 | AJ9: =AI9*0.02*1000 -> 13255.2 | AK9: 261.117776 | AL9: 86.88 | AM9: =AL9*0.07*1000 -> 6081.6 | AN9: 205.89 | AO9: - | AP9: - | AQ9: - | AR9: =AN9*0.06*1000 -> 12353.4 | AS9: =AR9/AM9*100 -> 203.1274665 | AT9: 31.49 | AV9: 151.18 | AX9: 480.0889171 | AY9: 0.29 | AZ9: 0 | BA9: 0 | BB9: 3 | BC9: 2.92 | BD9: 97.33333333 | BE9: 271 | BF9: 347.05 | BG9: =BF9/BE9*100 -> 128.0627306
A10: 3 | B10: с Старотырышкино | C10: 192.89 | D10: 0 | E10: 0 | F10: 24.51 | G10: 980.4 | H10: 61.24 | I10: 2449.6 | J10: 1224.8 | K10: 124.9286006 | L10: 286.73 | M10: 860.19 | N10: 0 | O10: 0 | P10: 0 | Q10: 62.31 | R10: 0 | S10: 0 | T10: 210.97 | U10: 2320.67 | V10: 583.9 | W10: =V10*0.06*100 -> 3503.4 | X10: 150.965023 | Y10: 141.09 | Z10: 0 | AA10: 0 | AB10: 190.22 | AC10: =AB10*0.015*1000 -> 2853.3 | AD10: 505.68 | AE10: 4551.12 | AF10: =AE10/AC10*100 -> 159.5037325 | AG10: 220.71 | AH10: 5076.33 | AI10: 0 | AJ10: 0 | AK10: 0 | AL10: 101.12 | AM10: 7078.4 | AN10: 149.57 | AO10: - | AP10: - | AQ10: - | AR10: 8974.2 | AS10: 126.7828888 | AT10: 23.03 | AV10: 109.82 | AX10: 476.8562744 | AY10: 0.29 | AZ10: 0 | BA10: 0 | BB10: 3 | BC10: 0 | BD10: 0 | BE10: 190.22 | BF10: 252.12 | BG10: =BF10/BE10*100 -> 132.541268
A11: 4 | B11: с Иконниково | C11: 192.89 | D11: 0 | E11: 0 | F11: 25.85 | G11: 1034 | H11: 70.25 | I11: 2810 | J11: 1405 | K11: 135.8800774 | L11: 173.95 | M11: 521.85 | N11: 0 | O11: 0 | P11: 0 | Q11: 62.31 | R11: 43.63 | S11: 70.02086342 | T11: 222.51 | U11: 2447.61 | V11: 669.81 | W11: =V11*0.06*100 -> 4018.86 | X11: 164.1952762 | Y11: 141.09 | Z11: 0 | AA11: 0 | AB11: 209.05 | AC11: =AB11*0.015*1000 -> 3135.75 | AD11: 0 | AE11: 0 | AF11: =AE11/AC11*100 -> 0 | AG11: 220.71 | AH11: 5076.33 | AI11: 552.3 | AJ11: 11046 | AK11: 217.5981467 | AL11: 67.02 | AM11: 4691.4 | AN11: 171.57 | AO11: - | AP11: - | AQ11: - | AR11: 10294.2 | AS11: 219.4270367 | AT11: 38.83 | AV11: 125.98 | AX11: 324.4398661 | AY11: 0.29 | AZ11: 0 | BA11: 0 | BB11: 3 | BC11: 2.92 | BD11: 97.33333333 | BE11: 209.05 | BF11: 289.21 | BG11: 138.3448936
A12: 6 | B12: с Точильное | C12: 192.89 | D12: 0 | E12: 0 | F12: 29.53 | G12: 1181.2 | H12: 71.2 | I12: 2848 | J12: 1424 | K12: 120.5553674 | L12: 286.73 | M12: 860.19 | N12: 543.8 | O12: 1087.6 | P12: 126.4371825 | Q12: 62.31 | R12: 0 | S12: 0 | T12: 254.18 | U12: 2795.98 | V12: 678.87 | W12: =V12*0.06*100 -> 4073.22 | X12: 145.6812996 | Y12: 141.09 | Z12: 0 | AA12: 0 | AB12: 238.81 | AC12: =AB12*0.015*1000 -> 3582.15 | AD12: 587.92 | AE12: 5291.28 | AF12: =AE12/AC12*100 -> 147.7124074 | AG12: 220.71 | AH12: 5076.33 | AI12: 0 | AJ12: 0 | AK12: 0 | AL12: 76.56 | AM12: 5359.2 | AN12: 173.89 | AO12: - | AP12: - | AQ12: - | AR12: 10433.4 | AS12: 194.6820421 | AT12: 27.75 | AV12: 127.69 | AX12: 460.1441441 | AY12: 0.29 | AZ12: 0 | BA12: 0 | BB12: 3 | BC12: 2.92 | BD12: 97.33333333 | BE12: 238.81 | BF12: 293.12 | BG12: 122.7419287
A13: 7 | B13: с Сычевка | C13: 192.89 | D13: 347.07 | E13: =D13/C13*100 -> 179.9315672 | F13: 25.63 | G13: 1025.2 | H13: 53.66 | I13: 2146.4 | J13: 1073.2 | K13: 104.6820133 | L13: 286.73 | M13: 860.19 | N13: 0 | O13: 0 | P13: 0 | Q13: 62.31 | R13: 0 | S13: 0 | T13: 220.61 | U13: 2426.71 | V13: 511.63 | W13: 3069.78 | X13: 126.4996642 | Y13: 141.09 | Z13: 0 | AA13: 0 | AB13: 207.27 | AC13: 3109.05 | AD13: 443.09 | AE13: 3987.81 | AF13: 128.2645824 | AG13: 220.71 | AH13: 5076.33 | AI13: 0 | AJ13: 0 | AK13: 0 | AL13: 66.45 | AM13: 4651.5 | AN13: 131.05 | AO13: - | AP13: - | AQ13: - | AR13: 7863 | AS13: 169.0422444 | AT13: 24.08 | AV13: 96.23 | AX13: 399.6262458 | AY13: 0.29 | AZ13: 0 | BA13: 0 | BB13: 3 | BC13: 2.92 | BD13: 97.33333333 | BE13: 207.27 | BF13: 220.91 | BG13: 106.5807883
A14: 8 | B14: п Нефтебаза | C14: 192.89 | D14: 0 | E14: 0 | F14: 25.41 | G14: 1016.4 | H14: 66.61 | I14: 2664.4 | J14: 1332.2 | K14: 131.0704447 | L14: 286.73 | M14: 860.19 | N14: 0 | O14: 0 | P14: 0 | Q14: 62.31 | R14: 0 | S14: 0 | T14: 405.2 | U14: 4457.2 | V14: 0 | W14: 0 | X14: 0 | Y14: 141.09 | Z14: 0 | AA14: 0 | AB14: 345.51 | AC14: 5182.65 | AD14: 0 | AE14: 0 | AF14: 0 | AG14: 220.71 | AH14: 5076.33 | AI14: 0 | AJ14: 0 | AK14: 0 | AL14: 101.12 | AM14: 7078.4 | AN14: 0 | AO14: - | AP14: - | AQ14: - | AR14: 0 | AS14: 0 | AT14: 38.83 | AV14: 0 | AX14: 0 | AY14: 0.29 | AZ14: 0 | BA14: 0 | BB14: 3 | BC14: 0 | BD14: 0 | BE14: 345.51 | BF14: 0 | BG14: 0
A15: 9 | B15: с Новотырышкино | C15: 192.89 | D15: 365.57 | E15: 189.5225258 | F15: 38.68 | G15: 1547.2 | H15: 56.52 | I15: 2260.8 | J15: 1130.4 | K15: 73.06101344 | L15: 286.73 | M15: 860.19 | N15: 431.68 | O15: 863.36 | P15: 100.3685232 | Q15: 62.31 | R15: 0 | S15: 0 | T15: 332.94 | U15: 3662.34 | V15: 538.9 | W15: 3233.4 | X15: 88.28781599 | Y15: 141.09 | Z15: 0 | AA15: 0 | AB15: 312.81 | AC15: 4692.15 | AD15: 466.71 | AE15: 4200.39 | AF15: 89.51951664 | AG15: 220.71 | AH15: 5076.33 | AI15: 444.35 | AJ15: 8887 | AK15: 175.0674208 | AL15: 100.29 | AM15: 7020.3 | AN15: 138.04 | AO15: - | AP15: - | AQ15: - | AR15: 8282.4 | AS15: 117.9778642 | AT15: 36.34 | AV15: 101.36 | AX15: 278.9212988 | AY15: 0.29 | AZ15: 0 | BA15: 0 | BB15: 3 | BC15: 2.92 | BD15: 97.33333333 | BE15: 312.81 | BF15: 232.68 | BG15: 74.38381126
A16: 10 | B16: с Первомайское | C16: 192.89 | D16: 0 | E16: 0 | F16: 30.27 | G16: 1210.8 | H16: 76.3 | I16: 3052 | J16: 1526 | K16: 126.0323753 | L16: 286.73 | M16: 860.19 | N16: 0 | O16: 0 | P16: 0 | Q16: 62.31 | R16: 0 | S16: 0 | T16: 260.55 | U16: 2866.05 | V16: 727.5 | W16: 4365 | X16: 152.3002041 | Y16: 141.09 | Z16: 0 | AA16: 0 | AB16: 244.8 | AC16: 3672 | AD16: 0 | AE16: 0 | AF16: 0 | AG16: 220.71 | AH16: 5076.33 | AI16: 0 | AJ16: 0 | AK16: 0 | AL16: 78.48 | AM16: 5493.6 | AN16: 186.35 | AO16: - | AP16: - | AQ16: - | AR16: 11181 | AS16: 203.5277414 | AT16: 28.44 | AV16: 136.83 | AX16: 481.1181435 | AY16: 0.29 | AZ16: 0 | BA16: 0 | BB16: 3 | BC16: 2.92 | BD16: 97.33333333 | BE16: 244.8 | BF16: 314.11 | BG16: 128.3129085
A17: 11 | B17: с Ануйское | C17: 192.89 | D17: 0 | E17: 0 | F17: 30.5 | G17: 1220 | H17: 69.01 | I17: 2760.4 | J17: 1380.2 | K17: 113.1311475 | L17: 286.73 | M17: 860.19 | N17: 0 | O17: 0 | P17: 0 | Q17: 62.31 | R17: 0 | S17: 0 | T17: 262.53 | U17: 2887.83 | V17: 657.99 | W17: 3947.94 | X17: 136.7095709 | Y17: 141.09 | Z17: 0 | AA17: 0 | AB17: 246.66 | AC17: 3699.9 | AD17: 0 | AE17: 0 | AF17: 0 | AG17: 220.71 | AH17: 5076.33 | AI17: 0 | AJ17: 0 | AK17: 0 | AL17: 101.12 | AM17: 7078.4 | AN17: 168.54 | AO17: - | AP17: - | AQ17: - | AR17: 10112.4 | AS17: 142.8627939 | AT17: 28.66 | AV17: 123.76 | AX17: 431.8213538 | AY17: 0.29 | AZ17: 0 | BA17: 0 | BB17: 3 | BC17: 2.92 | BD17: 97.33333333 | BE17: 246.66 | BF17: 284.1 | BG17: 115.1787886
A18: 12 | B18: п Маточный | C18: 192.89 | D18: 0 | E18: 0 | F18: 24.84 | G18: 993.6 | H18: 65.17 | I18: 2606.8 | J18: 1303.4 | K18: 131.1795491 | L18: 286.73 | M18: 860.19 | N18: 0 | O18: 0 | P18: 0 | Q18: 62.31 | R18: 0 | S18: 0 | T18: 289.99 | U18: 3189.89 | V18: 621.37 | W18: 3728.22 | X18: 116.8761305 | Y18: 141.09 | Z18: 0 | AA18: 0 | AB18: 272.45 | AC18: 4086.75 | AD18: 0 | AE18: 0 | AF18: 0 | AG18: 220.71 | AH18: 5076.33 | AI18: 0 | AJ18: 0 | AK18: 0 | AL18: 64.27 | AM18: 4498.9 | AN18: 159.17 | AO18: - | AP18: - | AQ18: - | AR18: 9550.2 | AS18: 212.278557 | AT18: 31.66 | AV18: 0 | AX18: 0 | AY18: 0.29 | AZ18: 0 | BA18: 0 | BB18: 3 | BC18: 2.92 | BD18: 97.33333333 | BE18: 272.45 | BF18: 0 | BG18: 0
A19: 13 | B19: п Кирпичный | C19: 192.89 | D19: 0 | E19: 0 | F19: 25.28 | G19: 1011.2 | H19: 66.8 | I19: 2672 | J19: 1336 | K19: 132.1202532 | L19: 286.73 | M19: 860.19 | N19: 0 | O19: 0 | P19: 0 | Q19: 62.31 | R19: 0 | S19: 0 | T19: 405.2 | U19: 4457.2 | V19: 0 | W19: 0 | X19: 0 | Y19: 141.09 | Z19: 0 | AA19: 0 | AB19: 345.51 | AC19: 5182.65 | AD19: 0 | AE19: 0 | AF19: 0 | AG19: 220.71 | AH19: 5076.33 | AI19: 0 | AJ19: 0 | AK19: 0 | AL19: 101.12 | AM19: 7078.4 | AN19: 0 | AO19: - | AP19: - | AQ19: - | AR19: 0 | AS19: 0 | AT19: 23.75 | AV19: 119.8 | AX19: 504.4210526 | AY19: 0.29 | AZ19: 0 | BA19: 0 | BB19: 3 | BC19: 0 | BD19: 0 | BE19: 345.51 | BF19: 0 | BG19: 0
A20: 14 | B20: п Усть-Катунь | C20: 192.89 | D20: 450.11 | E20: 233.3506143 | F20: 30.1 | G20: 1204 | H20: 69.59 | I20: 2783.6 | J20: 1391.8 | K20: 115.5980066 | L20: 286.73 | M20: 860.19 | N20: 0 | O20: 0 | P20: 0 | Q20: 62.31 | R20: 0 | S20: 0 | T20: 259.09 | U20: 2849.99 | V20: 663.52 | W20: 3981.12 | X20: 139.6889112 | Y20: 141.09 | Z20: 0 | AA20: 0 | AB20: 243.42 | AC20: 3651.3 | AD20: 0 | AE20: 0 | AF20: 0 | AG20: 220.71 | AH20: 5076.33 | AI20: 547.11 | AJ20: 10942.2 | AK20: 215.5533624 | AL20: 78.04 | AM20: 5462.8 | AN20: 169.96 | AO20: - | AP20: - | AQ20: - | AR20: 10197.6 | AS20: 186.6735008 | AT20: 38.83 | AV20: 0 | AX20: 0 | AY20: 0.29 | AZ20: 0 | BA20: 0 | BB20: 3 | BC20: 0 | BD20: 0 | BE20: 243.42 | BF20: 286.49 | BG20: 117.6936981
A21: 15 | B21: п Линевский | C21: 192.89 | D21: 0 | E21: 0 | F21: 32.56 | G21: 1302.4 | H21: 74.9 | I21: 2996 | J21: 1498 | K21: 115.0184275 | L21: 286.73 | M21: 860.19 | N21: 0 | O21: 0 | P21: 0 | Q21: 62.31 | R21: 0 | S21: 0 | T21: 280.27 | U21: 3082.97 | V21: 714.15 | W21: 4284.9 | X21: 138.9861076 | Y21: 141.09 | Z21: 0 | AA21: 0 | AB21: 263.32 | AC21: 3949.8 | AD21: 618.48 | AE21: 5566.32 | AF21: 140.9266292 | AG21: 220.71 | AH21: 5076.33 | AI21: 0 | AJ21: 0 | AK21: 0 | AL21: 84.42 | AM21: 5909.4 | AN21: 182.93 | AO21: - | AP21: - | AQ21: - | AR21: 10975.8 | AS21: 185.7345923 | AT21: 30.59 | AV21: 134.32 | AX21: 439.0977444 | AY21: 0.29 | AZ21: 0 | BA21: 0 | BB21: 3 | BC21: 2.92 | BD21: 97.33333333 | BE21: 263.32 | BF21: 308.35 | BG21: 117.1008659
A22: 16 | B22: с Солоновка | C22: 192.89 | D22: 0 | E22: 0 | F22: 22.51 | G22: 900.4 | H22: 41.91 | I22: 1676.4 | J22: 838.2 | K22: 93.09195913 | L22: 286.73 | M22: 860.19 | N22: 320.1 | O22: 640.2 | P22: 74.42541764 | Q22: 62.31 | R22: 0 | S22: 0 | T22: 193.76 | U22: 2131.36 | V22: 399.6 | W22: 2397.6 | X22: 112.4915547 | Y22: 141.09 | Z22: 0 | AA22: 0 | AB22: 182.04 | AC22: 2730.6 | AD22: 0 | AE22: 0 | AF22: 0 | AG22: 199.17 | AH22: 4580.91 | AI22: 329.49 | AJ22: 6589.8 | AK22: 143.8535138 | AL22: 58.36 | AM22: 4085.2 | AN22: 102.36 | AO22: - | AP22: - | AQ22: - | AR22: 6141.6 | AS22: 150.3378048 | AT22: 21.15 | AV22: 75.16 | AX22: 355.3664303 | AY22: 0.29 | AZ22: 0 | BA22: 0 | BB22: 3 | BC22: 2.92 | BD22: 97.33333333 | BE22: 182.04 | BF22: 172.54 | BG22: 94.78136673
A23: 17 | B23: с Степное | C23: 192.89 | D23: 0 | E23: 0 | F23: 24.49 | G23: 979.6 | H23: 62.28 | I23: 2491.2 | J23: 1245.6 | K23: 127.1539404 | L23: 286.73 | M23: 860.19 | N23: 0 | O23: 0 | P23: 0 | Q23: 62.31 | R23: 0 | S23: 0 | T23: 405.2 | U23: 4457.2 | V23: 0 | W23: 0 | X23: 0 | Y23: 141.09 | Z23: 0 | AA23: 0 | AB23: 198.05 | AC23: 2970.75 | AD23: 0 | AE23: 0 | AF23: 0 | AG23: 220.71 | AH23: 5076.33 | AI23: 0 | AJ23: 0 | AK23: 0 | AL23: 101.12 | AM23: 7078.4 | AN23: 152.11 | AO23: - | AP23: - | AQ23: - | AR23: 9126.6 | AS23: 128.9359177 | AT23: 38.83 | AV23: 0 | AX23: 0 | AY23: 0.29 | AZ23: 0.29 | BA23: 100 | BB23: 3 | BC23: 2.92 | BD23: 97.33333333 | BE23: 198.05 | BF23: 256.4 | BG23: 129.462257
A24: 18 | B24: п Молочный | C24: 192.89 | D24: 0 | E24: 0 | F24: 24.15 | G24: 966 | H24: 63.94 | I24: 2557.6 | J24: 1278.8 | K24: 132.3809524 | L24: 286.73 | M24: 860.19 | N24: 488.35 | O24: 976.7 | P24: 113.544682 | Q24: 62.31 | R24: 0 | S24: 0 | T24: 405.2 | U24: 4457.2 | V24: 609.65 | W24: 3657.9 | X24: 82.06721709 | Y24: 141.09 | Z24: 0 | AA24: 0 | AB24: 345.51 | AC24: 5182.65 | AD24: 0 | AE24: 0 | AF24: 0 | AG24: 220.71 | AH24: 5076.33 | AI24: 0 | AJ24: 0 | AK24: 0 | AL24: 101.12 | AM24: 7078.4 | AN24: 0 | AO24: - | AP24: - | AQ24: - | AR24: 0 | AS24: 0 | AT24: 22.69 | AV24: 114.67 | AX24: 505.376818 | AY24: 0.29 | AZ24: 0 | BA24: 0 | BB24: 3 | BC24: 2.92 | BD24: 97.33333333 | BE24: 345.51 | BF24: 0 | BG24: 0
A25: 19 | B25: с Катунское | C25: 192.89 | D25: 0 | E25: 0 | F25: 29.9 | G25: 1196 | H25: 74.88 | I25: 2995.2 | J25: 1497.6 | K25: 125.2173913 | L25: 286.73 | M25: 860.19 | N25: 0 | O25: 0 | P25: 0 | Q25: 62.31 | R25: 0 | S25: 0 | T25: 257.37 | U25: 2831.07 | V25: 713.96 | W25: 4283.76 | X25: 151.3124013 | Y25: 141.09 | Z25: 0 | AA25: 0 | AB25: 241.8 | AC25: 3627 | AD25: 0 | AE25: 0 | AF25: 0 | AG25: 264.56 | AH25: 6084.88 | AI25: 588.7 | AJ25: 11774 | AK25: 193.4960098 | AL25: 77.52 | AM25: 5426.4 | AN25: 182.88 | AO25: - | AP25: - | AQ25: - | AR25: 10972.8 | AS25: 202.2114109 | AT25: 28.09 | AV25: 134.29 | AX25: 478.0704877 | AY25: 0.29 | AZ25: 0 | BA25: 0 | BB25: 3 | BC25: 2.92 | BD25: 97.33333333 | BE25: 241.8 | BF25: 308.27 | BG25: 127.4896609
A26: 20 | B26: п Заречный | C26: 192.89 | D26: 0 | E26: 0 | F26: 28.26 | G26: 1130.4 | H26: 67.29 | I26: 2691.6 | J26: 1345.8 | K26: 119.0552017 | L26: 286.73 | M26: 860.19 | N26: 0 | O26: 0 | P26: 0 | Q26: 62.31 | R26: 0 | S26: 0 | T26: 243.25 | U26: 2675.75 | V26: 0 | W26: 0 | X26: 0 | Y26: 141.09 | Z26: 0 | AA26: 0 | AB26: 228.54 | AC26: 3428.1 | AD26: 555.64 | AE26: 5000.76 | AF26: 145.8755579 | AG26: 220.71 | AH26: 5076.33 | AI26: 0 | AJ26: 0 | AK26: 0 | AL26: 101.12 | AM26: 7078.4 | AN26: 0 | AO26: - | AP26: - | AQ26: - | AR26: 0 | AS26: 0 | AT26: 38.83 | AV26: 0 | AX26: 0 | AY26: 0.29 | AZ26: 0 | BA26: 0 | BB26: 3 | BC26: 2.92 | BD26: 97.33333333 | BE26: 228.54 | BF26: 277.02 | BG26: 121.2129168
A27: 21 | B27: с Песчаное | C27: 192.89 | D27: 0 | E27: 0 | F27: 26.29 | G27: 1051.6 | H27: 64.29 | I27: 2571.6 | J27: 1285.8 | K27: 122.2708254 | L27: 286.73 | M27: 860.19 | N27: 0 | O27: 0 | P27: 0 | Q27: 62.31 | R27: 0 | S27: 0 | T27: 226.3 | U27: 2489.3 | V27: 0 | W27: 0 | X27: 0 | Y27: 141.09 | Z27: 0 | AA27: 0 | AB27: 212.61 | AC27: 3189.15 | AD27: 530.87 | AE27: 4777.83 | AF27: 149.8151545 | AG27: 220.71 | AH27: 5076.33 | AI27: 0 | AJ27: 0 | AK27: 0 | AL27: 101.12 | AM27: 7078.4 | AN27: 0 | AO27: - | AP27: - | AQ27: - | AR27: 0 | AS27: 0 | AT27: 38.83 | AV27: 0 | AX27: 0 | AY27: 0.29 | AZ27: 0 | BA27: 0 | BB27: 3 | BC27: 2.92 | BD27: 97.33333333 | BE27: 212.61 | BF27: 264.67 | BG27: 124.4861483
A28: 22 | B28: п Красный Маяк | C28: 192.89 | D28: 0 | E28: 0 | F28: 28.31 | G28: 1132.4 | H28: 75.04 | I28: 3001.6 | J28: 1500.8 | K28: 132.532674 | L28: 286.73 | M28: 860.19 | N28: 0 | O28: 0 | P28: 0 | Q28: 62.31 | R28: 0 | S28: 0 | T28: 405.2 | U28: 4457.2 | V28: 715.48 | W28: 4292.88 | X28: 96.3133806 | Y28: 141.09 | Z28: 0 | AA28: 0 | AB28: 228.95 | AC28: 3434.25 | AD28: 0 | AE28: 0 | AF28: 0 | AG28: 220.71 | AH28: 5076.33 | AI28: 589.95 | AJ28: 11799 | AK28: 232.4316977 | AL28: 101.12 | AM28: 7078.4 | AN28: 183.27 | AO28: - | AP28: - | AQ28: - | AR28: 10996.2 | AS28: 155.3486664 | AT28: 26.6 | AV28: 134.57 | AX28: 505.9022556 | AY28: 0.29 | AZ28: 0 | BA28: 0 | BB28: 3 | BC28: 2.92 | BD28: 97.33333333 | BE28: 228.95 | BF28: 0 | BG28: 0
A29: 23 | B29: п Красный Городок | C29: 192.89 | D29: 0 | E29: 0 | F29: 19.61 | G29: 784.4 | H29: 37.41 | I29: 1496.4 | J29: 748.2 | K29: 95.38500765 | L29: 286.73 | M29: 860.19 | N29: 0 | O29: 0 | P29: 0 | Q29: 62.31 | R29: 0 | S29: 0 | T29: 172.47 | U29: 1897.17 | V29: 0 | W29: 0 | X29: 0 | Y29: 128.37 | Z29: 0 | AA29: 0 | AB29: 167.34 | AC29: 2510.1 | AD29: 308.91 | AE29: 2780.19 | AF29: 110.7601291 | AG29: 199.17 | AH29: 4580.91 | AI29: 0 | AJ29: 0 | AK29: 0 | AL29: 56.85 | AM29: 3979.5 | AN29: 0 | AO29: - | AP29: - | AQ29: - | AR29: 0 | AS29: 0 | AT29: 21.15 | AV29: 0 | AX29: 0 | AY29: 0.29 | AZ29: 0 | BA29: 0 | BB29: 3 | BC29: 2.92 | BD29: 97.33333333 | BE29: 167.34 | BF29: 154.01 | BG29: 92.03418191
A30: 24 | B30: п Набережный | C30: 192.89 | D30: 0 | E30: 0 | F30: 26.19 | G30: 1047.6 | H30: 70.09 | I30: 2803.6 | J30: 1401.8 | K30: 133.8106147 | L30: 286.73 | M30: 860.19 | N30: 0 | O30: 0 | P30: 0 | Q30: 62.31 | R30: 0 | S30: 0 | T30: 225.61 | U30: 2481.71 | V30: 0 | W30: 0 | X30: 0 | Y30: 141.09 | Z30: 0 | AA30: 0 | AB30: 345.51 | AC30: 5182.65 | AD30: 0 | AE30: 0 | AF30: 0 | AG30: 220.71 | AH30: 5076.33 | AI30: 0 | AJ30: 0 | AK30: 0 | AL30: 101.12 | AM30: 7078.4 | AN30: 0 | AO30: - | AP30: - | AQ30: - | AR30: 0 | AS30: 0 | AT30: 22.69 | AV30: 0 | AX30: 0 | AY30: 0.29 | AZ30: 0 | BA30: 0 | BB30: 3 | BC30: 2.92 | BD30: 97.33333333 | BE30: 345.51 | BF30: 288.55 | BG30: 83.51422535
A31: 25 | B31: с Александровка | C31: 192.89 | D31: 0 | E31: 0 | F31: 29.66 | G31: 1186.4 | H31: 74.68 | I31: 2987.2 | J31: 1493.6 | K31: 125.8934592 | L31: 286.73 | M31: 860.19 | N31: 0 | O31: 0 | P31: 0 | Q31: 62.31 | R31: 0 | S31: 0 | T31: 255.3 | U31: 2808.3 | V31: 712.05 | W31: 4272.3 | X31: 152.1311826 | Y31: 141.09 | Z31: 0 | AA31: 0 | AB31: 239.86 | AC31: 3597.9 | AD31: 0 | AE31: 0 | AF31: 0 | AG31: 220.71 | AH31: 5076.33 | AI31: 0 | AJ31: 0 | AK31: 0 | AL31: 101.12 | AM31: 7078.4 | AN31: 182.39 | AR31: 10943.4 | AS31: 154.6027351 | AT31: 38.83 | AV31: 0 | AX31: =AV31/AT31*100 -> 0 | AY31: 0.29 | AZ31: 0 | BA31: 0 | BB31: 3 | BC31: 2.92 | BD31: 97.33333333 | BE31: 239.86 | BF31: 307.45 | BG31: 128.1789377
A32: 26 | B32: с Ленинское | C32: 192.89 | D32: 0 | E32: 0 | F32: 27.03 | G32: 1081.2 | H32: 70.4 | I32: 2816 | J32: 1408 | K32: 130.2256752 | L32: 181.22 | M32: 543.66 | N32: 537.69 | O32: 1075.38 | P32: 197.8037744 | Q32: 62.31 | R32: 0 | S32: =R32/Q32*100 -> 0 | T32: 231.8 | U32: 2549.8 | V32: 0 | W32: 0 | X32: 0 | Y32: 141.09 | Z32: 0 | AA32: =Z32/Y32*100 -> 0 | AB32: 217.79 | AC32: 3266.85 | AD32: 581.32 | AE32: 5231.88 | AF32: 160.1506038 | AG32: 220.71 | AH32: 5076.33 | AI32: 0 | AJ32: 0 | AK32: 0 | AL32: 69.82 | AM32: 4887.4 | AN32: 171.94 | AO32: - | AP32: - | AQ32: - | AR32: 10316.4 | AS32: 211.0815567 | AT32: 30.59 | AV32: 126.25 | AX32: 412.716574 | AY32: 0.29 | AZ32: 0 | BA32: 0 | BB32: 3 | BC32: 2.92 | BD32: 97.33333333 | BE32: 217.79 | BF32: 289.83 | BG32: 133.0777354
A33: 27 | B33: п Раздольный | C33: 192.89 | D33: 0 | E33: 0 | F33: 27.36 | G33: 1094.4 | H33: 77.76 | I33: 3110.4 | J33: 1555.2 | K33: 142.1052632 | L33: 286.73 | M33: 860.19 | N33: 0 | O33: 0 | P33: 0 | Q33: 62.31 | R33: 0 | S33: 0 | T33: 405.2 | U33: 4457.2 | V33: 0 | W33: 0 | X33: 0 | Y33: 141.09 | Z33: 0 | AA33: 0 | AB33: 221.26 | AC33: 3318.9 | AD33: 0 | AE33: 0 | AF33: 0 | AG33: 220.71 | AH33: 5076.33 | AI33: 0 | AJ33: 0 | AK33: 0 | AL33: 101.12 | AM33: 7078.4 | AN33: 0 | AO33: - | AP33: - | AQ33: - | AR33: 0 | AS33: 0 | AT33: 38.83 | AV33: 0 | AX33: 0 | AY33: 0.29 | AZ33: 0 | BA33: 0 | BB33: 3 | BC33: 2.92 | BD33: 97.33333333 | BE33: 221.26 | BF33: 0 | BG33: 0
A34: 28 | B34: с Черновая | C34: 192.89 | D34: 0 | E34: 0 | F34: 19.05 | G34: 762 | H34: 42.47 | I34: 1698.8 | J34: 849.4 | K34: 111.4698163 | L34: 128.19 | M34: 384.57 | N34: 0 | O34: 0 | P34: 0 | Q34: 62.31 | R34: 0 | S34: 0 | T34: 163.98 | U34: 1803.78 | V34: 404.94 | W34: 2429.64 | X34: 134.697136 | Y34: 141.09 | Z34: 0 | AA34: 0 | AB34: 154.06 | AC34: 2310.9 | AD34: 350.69 | AE34: 3156.21 | AF34: 136.5792548 | AG34: 168.56 | AH34: 3876.88 | AI34: 0 | AJ34: 0 | AK34: 0 | AL34: 49.39 | AM34: 3457.3 | AN34: 103.73 | AR34: 6223.8 | AS34: 180.01909 | AT34: 17.9 | AV34: 76.16 | AX34: 425.4748603 | AY34: 0.29 | AZ34: 0 | BA34: 0 | BB34: 3 | BC34: 2.92 | BD34: 97.33333333 | BE34: 154.06 | BF34: 174.84 | BG34: 113.4882513
A35: 29 | B35: с Михайловка | C35: 192.89 | D35: 0 | E35: 0 | F35: 26.57 | G35: 1062.8 | H35: 70.71 | I35: 2828.4 | J35: 1414.2 | K35: 133.0636056 | L35: 286.73 | M35: 860.19 | N35: 0 | O35: 0 | P35: 0 | Q35: 62.31 | R35: 0 | S35: 0 | T35: 405.2 | U35: 4457.2 | V35: 0 | W35: 0 | X35: 0 | Y35: 141.09 | Z35: 0 | AA35: 0 | AB35: 345.51 | AC35: 5182.65 | AD35: 0 | AE35: 0 | AF35: 0 | AG35: 220.71 | AH35: 5076.33 | AI35: 0 | AJ35: 0 | AK35: 0 | AL35: 101.12 | AM35: 7078.4 | AN35: 0 | AR35: 0 | AS35: 0 | AT35: 38.83 | AV35: 0 | AX35: 0 | AY35: 0.29 | AZ35: 0 | BA35: 0 | BB35: 3 | BC35: 2.92 | BD35: 97.33333333 | BE35: 345.51 | BF35: 0 | BG35: 0
A36: 30 | B36: п Речной | C36: 192.89 | D36: 0 | E36: 0 | F36: 27.85 | G36: 1114 | H36: 75.82 | I36: 3032.8 | J36: 1516.4 | K36: 136.1220826 | L36: 286.73 | M36: 860.19 | N36: 0 | O36: 0 | P36: 0 | Q36: 62.31 | R36: 0 | S36: 0 | T36: 405.2 | U36: 4457.2 | V36: 722.92 | W36: 4337.52 | X36: 97.31490622 | Y36: 141.09 | Z36: 0 | AA36: 0 | AB36: 225.23 | AC36: 3378.45 | AD36: 0 | AE36: 0 | AF36: 0 | AG36: 220.71 | AH36: 5076.33 | AI36: 0 | AJ36: 0 | AK36: 0 | AL36: 101.12 | AM36: 7078.4 | AN36: 0 | AR36: 0 | AS36: 0 | AT36: 38.83 | AV36: 0 | AX36: 0 | AY36: 0.29 | AZ36: 0 | BA36: 0 | BB36: 3 | BC36: 2.92 | BD36: 97.33333333 | BE36: 225.23 | BF36: 0 | BG36: 0
A37: 31 | B37: п Южный | C37: 192.89 | D37: 0 | E37: 0 | F37: 18.33 | G37: 733.2 | H37: 46.81 | I37: 1872.4 | J37: 936.2 | K37: 127.6868522 | L37: 286.73 | M37: 860.19 | N37: 0 | O37: 0 | P37: 0 | Q37: 62.31 | R37: 0 | S37: 0 | T37: 405.2 | U37: 4457.2 | V37: 0 | W37: 0 | X37: 0 | Y37: 141.09 | Z37: 0 | AA37: 0 | AB37: 148.24 | AC37: 2223.6 | AD37: 386.53 | AE37: 3478.77 | AF37: 156.4476525 | AG37: 220.71 | AH37: 5076.33 | AI37: 0 | AJ37: 0 | AK37: 0 | AL37: 47.53 | AM37: 3327.1 | AN37: 0 | AR37: 0 | AS37: 0 | AT37: 38.83 | AV37: 83.95 | AX37: 216.1988153 | AY37: 0.29 | AZ37: 0 | BA37: 0 | BB37: 3 | BC37: 2.92 | BD37: 97.33333333 | BE37: 148.24 | BF37: 0 | BG37: 0
B38: Смоленский | C38: 192.89 | D38: 834.24 | E38: =D38/C38*100 -> 432.4952045 | F38: 36.83 | G38: 1473.2 | H38: 83.26 | I38: 3330.4 | J38: 1665.2 | K38: 113.0328537 | L38: 286.73 | N38: 557.58 | P38: =N38/L38*100 -> 194.4616887 | Q38: 62.31 | R38: 78.74 | S38: =R38/Q38*100 -> 126.3681592 | T38: 405.2 | V38: 1076.29 | Y38: 141.09 | Z38: 0 | AA38: 0 | AB38: 345.51 | AD38: 690.27 | AG38: 220.71 | AI38: 518.56 | AL38: 101.12 | AN38: 232.67 | AT38: 38.83 | AV38: 168.85 | AX38: 434.8441926 | AY38: 0.29 | BA38: =AZ38/AY38*100 -> 0 | BB38: 3 | BC38: 2.92 | BD38: =BC38/BB38*100 -> 97.33333333 | BE38: 345.51 | BF38: 387.16 | BG38: =BF38/BE38*100 -> 112.0546439
E39: 283.86 | K39: =AVERAGE(K7:K37) -> 122.1390449 | P39: 129.47

Sheet Лист2
A1: Анализ удельных показателей кадастровой стоимости земельных участков по видам разрешенного использования по населенным пунктам Смоленского района и средних значений удельных показателей кадастровой стоимости земельных участков по Смоленскому району и близлежайшим районам по результатам переоценки кадастровой стоимости земель поселений 2009 года и планируемой переоценки кадастровой стоимости земель поселений 2015 года
A3: № п/п | B3: Наименование населенного пункта | E3: УПКСЗ по видам разрешенного использования
C4: 1 размещение домов среднеэтажной и многоэтажной жилой застройки | K4: 2 размещение домов малоэтажной жилой застройки, в том числе индивидуальной жилой застройки | S4: 3 размещение гаражей и автостоянок | AA4: 4 для дачного строительства, садоводства и огородничества | AI4: 5 размещение объектов торговли, общественного питания и бытового обслуживания | AQ4: 6 размещение гостиниц | AV4: 7 размещение офисных зданий делового и коммерческого назначения | BD4: 8 размещение объектов рекреационного и лечебно-оздоровительного назначения | BL4: 9 размещение производственных и административных зданий, строений, сооружений промышленности, коммунального хозяйства, материально-технического, продовольственного снабжения, сбыта и заготовок | BT4: 13 для разработки полезных ископаемых, размещения железнодорожных путей, автомобильных дорог, искусственно созданных внутренних водных путей, причалов, пристаней, полос отвода железных и автомобильных дорог, водных путей, трубопроводов, кабельных, радиорелейных и воздушных линий связи и линий радиофикации, воздушных линий электропередачи конструктивных элементов и сооружений, объектов, необходимых для эксплуатации, содержания, строительства, реконструкции, ремонта, развития наземных и подземных зданий, строений, сооружений, устройств транспорта, энергетики и связи; размещения наземных сооружений и инфраструктуры спутниковой связи, объектов космической деятельности, военных объектов | CB4: 14 занятые особо охраняемыми территориями и объектами, городскими лесами, скверами, парками, городскими садами | CG4: 15 для сельскохозяйственного использования | CO4: 17 размещение административных зданий, объектов образования, науки, здравоохранения и социального обеспечения, физической культуры и спорта, культуры, искусства, религии
C5: 2009 | D5: было стар | E5: 2015 | F5: есть | G5: коэфф | H5: хотим | I5: % | J5: % повыш стоимсот | K5: 2009 | L5: было стар | M5: 2015 | N5: есть | O5: коэфф | P5: хотим | Q5: % кад | R5: % повыш стоимсот | S5: 2009 | T5: было стар | U5: 2015 | V5: есть | W5: коэфф | X5: хотим | Y5: % кад | Z5: % повыш стоимсот | AA5: 2009 | AC5: 2015 | AD5: есть | AE5: коэфф | AF5: хотим | AG5: % кад | AH5: % повыш стоимсот | AI5: 2009 | AJ5: было стар | AK5: 2015 | AL5: есть | AM5: коэфф | AN5: хотим | AO5: % кад | AP5: % повыш стоимсот | AQ5: 2009 | AR5: было старое | AS5: 2015 | AT5: коэфф | AU5: % | AV5: 2009 | AW5: было стар | AX5: 2015 | AY5: есть | AZ5: коэфф | BA5: хотим | BB5: % кад | BC5: % повыш стоимсот | BD5: 2009 | BE5: было стар | BF5: 2015 | BG5: есть | BH5: коэфф | BI5: хотим | BJ5: % кад | BK5: % повыш стоимсот | BL5: 2009 | BM5: было стар | BN5: 2015 | BO5: есть | BP5: коэфф | BQ5: хотим | BR5: % кад | BS5: % повыш стоимсот | BT5: 2009 | BU5: было стар | BV5: 2015 | BW5: есть | BX5: коэфф | BY5: хотим | BZ5: % кад | CA5: % повыш стоимсот | CB5: 2009 | CD5: 2015 | CE5: коэфф | CF5: % | CG5: 2009 | CH5: было стар | CI5: 2015 | CJ5: есть | CK5: коэфф | CL5: хотим | CM5: % кад | CN5: % повыш стоимсот | CO5: 2009 | CP5: было стар | CQ5: 2015 | CR5: есть | CS5: коэфф | CT5: хотим | CU5: % кад | CV5: % повыш стоимсот
A6: 1 | B6: 2 | C6: 5 | E6: 6 | I6: 7 | K6: 8 | M6: 9 | Q6: 10 | S6: 11 | U6: 12 | Y6: 13 | AA6: 14 | AC6: 15 | AG6: 16 | AI6: 17 | AK6: 18 | AO6: 19 | AQ6: 20 | AS6: 21 | AU6: 22 | AV6: 23 | AX6: 24 | BB6: 25 | BD6: 26 | BF6: 27 | BJ6: 28 | BL6: 29 | BN6: 30 | BR6: 31 | BT6: 32 | BV6: 33 | BZ6: 34 | CB6: 35 | CD6: 36 | CF6: 37 | CG6: 38 | CI6: 39 | CM6: 40 | CO6: 41 | CQ6: 42 | CU6: 43
A7: 1 | B7: Смоленское | C7: 192.89 | D7: =C7*0.03*1000 -> 5786.7 | E7: 1027.37 | F7: =E7*0.03*1000 -> 30821.1 | G7: 0.016 | H7: =E7*G7*1000 -> 16437.92 | I7: =E7/C7*100 -> 532.6196278 | J7: =H7/D7*100 -> 284.0638015 | K7: 72.38 | L7: =K7*0.03*1000 -> 2171.4 | M7: 158.84 | N7: =M7*0.03*1000 -> 4765.2 | O7: 0.016 | P7: =M7*O7*1000 -> 2541.44 | Q7: =M7/K7*100 -> 219.4528875 | R7: =P7/L7*100 -> 117.04154 | S7: 492.52 | T7: =S7*0.03*1000 -> 14775.6 | U7: 1213.17 | V7: =U7*0.03*1000 -> 36395.1 | W7: 0.017 | X7: =U7*W7*1000 -> 20623.89 | Y7: =U7/S7*100 -> 246.3189312 | Z7: =X7/T7*100 -> 139.5807277 | AA7: 62.31 | AB7: =AA7*0.03*1000 -> 1869.3 | AC7: 98.65 | AD7: =AC7*0.03*1000 -> 2959.5 | AE7: 0.05 | AF7: =AC7*AE7*1000 -> 4932.5 | AG7: =AC7/AA7*100 -> 158.3212967 | AH7: =AF7/AB7*100 -> 263.8688279 | AI7: 629.99 | AJ7: =AI7*0.25*1000 -> 157497.5 | AK7: 1514.49 | AL7: =AK7*0.25*1000 -> 378622.5 | AM7: 0.12 | AN7: =AK7*AM7*1000 -> 181738.8 | AO7: =AK7/AI7*100 -> 240.399054 | AP7: =AN7/AJ7*100 -> 115.3915459 | AQ7: 141.09 | AR7: =AQ7*0.015*1000 -> 2116.35 | AS7: 0 | AT7: 0.015 | AU7: =AS7/AQ7*100 -> 0 | AV7: 591.9 | AW7: =AV7*0.015*1000 -> 8878.5 | AX7: 1311.6 | AY7: =AX7*0.015*1000 -> 19674 | AZ7: 0.007 | BA7: =AX7*AZ7*1000 -> 9181.2 | BB7: =AX7/AV7*100 -> 221.591485 | BC7: =BA7/AW7*100 -> 103.4093597 | BD7: 220.71 | BE7: =BD7*0.023*1000 -> 5076.33 | BF7: 0 | BG7: =BF7*0.023*1000 -> 0 | BH7: 0.02 | BI7: =BF7*BH7*1000 -> 0 | BJ7: =BF7/BD7*100 -> 0 | BL7: 189.76 | BM7: =BL7*0.07*1000 -> 13283.2 | BN7: 387.94 | BO7: =BN7*0.07*1000 -> 27155.8 | BP7: 0.04 | BQ7: =BN7*BP7*1000 -> 15517.6 | BR7: =BN7/BL7*100 -> 204.4371838 | BS7: =BQ7/BM7*100 -> 116.8212479 | BT7: 68.77 | BU7: =BT7*0.015*1000 -> 1031.55 | BV7: 284.86 | BW7: =BV7*0.07*1000 -> 19940.2 | BX7: 0.01 | BY7: =BV7*BX7*1000 -> 2848.6 | BZ7: =BV7/BT7*100 -> 414.2213174 | CA7: =BY7/BU7*100 -> 276.147545 | CB7: 0.29 | CC7: =CB7*3*1000 -> 870 | CD7: 0.29 | CE7: 3 | CF7: =CD7/CB7*100 -> 100 | CG7: 3 | CH7: =CG7*0.03*1000 -> 90 | CI7: 2.92 | CJ7: =CI7*0.03*1000 -> 87.6 | CK7: 0.045 | CL7: =CI7*CK7*1000 -> 131.4 | CM7: =CI7/CG7*100 -> 97.33333333 | CN7: =CL7/CH7*100 -> 146 | CO7: 591.9 | CP7: =CO7*0.015*1000 -> 8878.5 | CQ7: 653.92 | CR7: =CQ7*0.03*1000 -> 19617.6 | CS7: 0.015 | CT7: =CQ7*CS7*1000 -> 9808.8 | CU7: =CQ7/CO7*100 -> 110.4781213 | CV7: =CT7/CP7*100 -> 110.4781213
A8: 2 | B8: Первомайское | C8: 192.89 | D8: =C8*0.04*1000 -> 7715.6 | E8: 0 | F8: =E8*0.04*1000 -> 0 | G8: 0.016 | H8: =E8*G8*1000 -> 0 | I8: =E8/C8*100 -> 0 | K8: 30.27 | L8: =K8*0.04*1000 -> 1210.8 | M8: 76.3 | N8: =M8*0.04*1000 -> 3052 | O8: 0.016 | P8: =M8*O8*1000 -> 1220.8 | Q8: =M8/K8*100 -> 252.0647506 | R8: =P8/L8*100 -> 100.8259002 | S8: 286.73 | T8: =S8*0.03*1000 -> 8601.9 | U8: 0 | V8: =U8*0.03*1000 -> 0 | W8: 0.017 | X8: =U8*W8*1000 -> 0 | Y8: =U8/S8*100 -> 0 | AA8: 62.31 | AB8: =AA8*0.04*1000 -> 2492.4 | AC8: 0 | AD8: =AC8*0.04*1000 -> 0 | AE8: 0.05 | AF8: =AC8*AE8*1000 -> 0 | AG8: =AC8/AA8*100 -> 0 | AI8: 260.55 | AJ8: =AI8*0.11*1000 -> 28660.5 | AK8: 727.5 | AL8: =AK8*0.11*1000 -> 80025 | AM8: 0.12 | AN8: =AK8*AM8*1000 -> 87300 | AO8: =AK8/AI8*100 -> 279.2170409 | AP8: =AN8/AJ8*100 -> 304.6004082 | AQ8: 141.09 | AS8: 0 | AT8: 0.015 | AU8: =AS8/AQ8*100 -> 0 | AV8: 244.8 | AW8: =AV8*0.015*1000 -> 3672 | AX8: 0 | AY8: =AX8*0.015*1000 -> 0 | AZ8: 0.007 | BA8: =AX8*AZ8*1000 -> 0 | BB8: =AX8/AV8*100 -> 0 | BD8: 220.71 | BE8: =BD8*0.023*1000 -> 5076.33 | BF8: 0 | BG8: =BF8*0.023*1000 -> 0 | BH8: 0.02 | BI8: =BF8*BH8*1000 -> 0 | BJ8: =BF8/BD8*100 -> 0 | BL8: 78.48 | BM8: =BL8*0.07*1000 -> 5493.6 | BN8: 186.35 | BO8: =BN8*0.07*1000 -> 13044.5 | BP8: 0.04 | BQ8: =BN8*BP8*1000 -> 7454 | BR8: =BN8/BL8*100 -> 237.4490316 | BS8: =BQ8/BM8*100 -> 135.6851609 | BT8: 28.44 | BU8: =BT8*0.015*1000 -> 426.6 | BV8: 136.83 | BW8: =BV8*0.07*1000 -> 9578.1 | BX8: 0.01 | BY8: =BV8*BX8*1000 -> 1368.3 | BZ8: =BV8/BT8*100 -> 481.1181435 | CA8: =BY8/BU8*100 -> 320.745429 | CB8: 0.29 | CD8: 0 | CF8: =CD8/CB8*100 -> 0 | CG8: 3 | CH8: =CG8*0.04*1000 -> 120 | CI8: 2.92 | CJ8: =CI8*0.04*1000 -> 116.8 | CK8: 0.045 | CL8: =CI8*CK8*1000 -> 131.4 | CM8: =CI8/CG8*100 -> 97.33333333 | CN8: =CL8/CH8*100 -> 109.5 | CO8: 244.8 | CP8: =CO8*0.015*1000 -> 3672 | CQ8: 314.11 | CR8: =CQ8*0.03*1000 -> 9423.3 | CS8: 0.015 | CT8: =CQ8*CS8*1000 -> 4711.65 | CU8: =CQ8/CO8*100 -> 128.3129085 | CV8: =CT8/CP8*100 -> 128.3129085
A9: 3 | B9: Ленинское | C9: 192.89 | D9: =C9*0.04*1000 -> 7715.6 | E9: 0 | F9: =E9*0.04*1000 -> 0 | G9: 0.016 | H9: 0 | I9: =E9/C9*100 -> 0 | K9: 27.03 | L9: =K9*0.04*1000 -> 1081.2 | M9: 70.4 | N9: =M9*0.04*1000 -> 2816 | O9: 0.016 | P9: 1126.4 | Q9: =M9/K9*100 -> 260.4513504 | R9: =P9/L9*100 -> 104.1805401 | S9: 181.22 | T9: 5436.6 | U9: 537.69 | V9: =U9*0.03*1000 -> 16130.7 | W9: 0.017 | X9: 9140.73 | Y9: =U9/S9*100 -> 296.7056616 | Z9: =X9/T9*100 -> 168.1332083 | AA9: 62.31 | AB9: =AA9*0.04*1000 -> 2492.4 | AC9: 0 | AD9: =AC9*0.04*1000 -> 0 | AE9: 0.05 | AF9: 0 | AG9: =AC9/AA9*100 -> 0 | AI9: 231.8 | AJ9: =AI9*0.11*1000 -> 25498 | AK9: 0 | AL9: =AK9*0.11*1000 -> 0 | AM9: 0.12 | AN9: 0 | AQ9: 141.09 | AS9: 0 | AT9: 0.015 | AU9: =AS9/AQ9*100 -> 0 | AV9: 217.79 | AW9: 3266.85 | AX9: 581.32 | AY9: =AX9*0.015*1000 -> 8719.8 | AZ9: 0.007 | BA9: 4069.24 | BB9: 266.917673 | BC9: =BA9/AW9*100 -> 124.5615807 | BD9: 220.71 | BE9: 5076.33 | BF9: 0 | BG9: 0 | BH9: 0.02 | BI9: 0 | BJ9: =BF9/BD9*100 -> 0 | BL9: 69.82 | BM9: 4887.4 | BN9: 171.94 | BO9: 12035.8 | BP9: 0.04 | BQ9: 6877.6 | BR9: =BN9/BL9*100 -> 246.2618161 | BS9: 140.7210378 | BT9: 30.59 | BU9: 458.85 | BV9: 126.25 | BW9: 8837.5 | BX9: 0.01 | BY9: 1262.5 | BZ9: =BV9/BT9*100 -> 412.716574 | CA9: 275.1443827 | CB9: 0.29 | CD9: 0 | CF9: =CD9/CB9*100 -> 0 | CG9: 3 | CH9: =CG9*0.04*1000 -> 120 | CI9: 2.92 | CJ9: =CI9*0.04*1000 -> 116.8 | CK9: 0.045 | CL9: 131.4 | CM9: =CI9/CG9*100 -> 97.33333333 | CN9: 109.5 | CO9: 217.79 | CP9: 3266.85 | CQ9: 289.83 | CR9: 8694.9 | CS9: 0.015 | CT9: 4347.45 | CU9: =CQ9/CO9*100 -> 133.0777354 | CV9: =CT9/CP9*100 -> 133.0777354
J10: =AVERAGE(J7:J9) -> 284.0638015 | R10: =AVERAGE(R7:R9) -> 107.3493268 | Z10: 153.856968 | AH10: =AVERAGE(AH7:AH9) -> 263.8688279 | AP10: 209.9959771 | BC10: 113.9854702 | BS10: 131.0758155 | CA10: 290.6791189 | CF10: 33.33333333 | CN10: =AVERAGE(CN7:CN9) -> 121.6666667 | CV10: 123.9562551
A11: 4 | B11: Ануйское | C11: 192.89 | D11: 7715.6 | E11: 0 | F11: =E11*0.04*1000 -> 0 | G11: 0.018 | H11: =E11*G11*1000 -> 0 | I11: =E11/C11*100 -> 0 | J11: =H11/D11*100 -> 0 | K11: 30.5 | L11: 1220 | M11: 69.01 | N11: 2760.4 | O11: 0.019 | P11: 1311.19 | Q11: =M11/K11*100 -> 226.2622951 | R11: =P11/L11*100 -> 107.4745902 | S11: 286.73 | T11: 8601.9 | U11: 0 | V11: 0 | W11: 0.017 | X11: 0 | Y11: =U11/S11*100 -> 0 | AA11: 62.31 | AB11: =AA11*0.04*1000 -> 2492.4 | AC11: 0 | AD11: =AC11*0.04*1000 -> 0 | AE11: 0.05 | AF11: =AC11*AE11*1000 -> 0 | AG11: =AC11/AA11*100 -> 0 | AH11: 0 | AI11: 262.53 | AJ11: 28878.3 | AK11: 657.99 | AL11: 72378.9 | AM11: 0.05 | AN11: 32899.5 | AO11: 250.6342132 | AP11: 113.9246424 | AQ11: 141.09 | AS11: 0 | AT11: 0.015 | AU11: =AS11/AQ11*100 -> 0 | AV11: 246.66 | AW11: 3699.9 | AX11: 0 | AY11: 0 | AZ11: 0.006 | BA11: 0 | BB11: 0 | BD11: 220.71 | BE11: 5076.33 | BF11: 0 | BG11: 0 | BH11: 0.02 | BI11: 0 | BJ11: =BF11/BD11*100 -> 0 | BL11: 101.12 | BM11: 7078.4 | BN11: 168.54 | BO11: 11797.8 | BP11: 0.05 | BQ11: 8427 | BR11: =BN11/BL11*100 -> 166.6732595 | BS11: 119.0523282 | BT11: 28.66 | BU11: 429.9 | BV11: 123.76 | BW11: 8663.2 | BX11: 0.01 | BY11: 1237.6 | BZ11: =BV11/BT11*100 -> 431.8213538 | CA11: 287.8809025 | CB11: 0.29 | CD11: 0 | CF11: =CD11/CB11*100 -> 0 | CG11: 3 | CH11: 120 | CI11: 2.92 | CJ11: 116.8 | CK11: 0.045 | CL11: 131.4 | CM11: =CI11/CG11*100 -> 97.33333333 | CN11: 109.5 | CO11: 246.66 | CP11: 3699.9 | CQ11: 284.1 | CR11: 8523 | CS11: 0.015 | CT11: 4261.5 | CU11: =CQ11/CO11*100 -> 115.1787886 | CV11: =CT11/CP11*100 -> 115.1787886
A12: 5 | B12: Старотырышкино | C12: 192.89 | D12: 7715.6 | E12: 0 | F12: 0 | G12: 0.018 | H12: 0 | I12: =E12/C12*100 -> 0 | J12: =H12/D12*100 -> 0 | K12: 24.51 | L12: 980.4 | M12: 61.24 | N12: 2449.6 | O12: 0.019 | P12: 1163.56 | Q12: =M12/K12*100 -> 249.8572011 | R12: =P12/L12*100 -> 118.6821705 | S12: 286.73 | T12: 8601.9 | U12: 0 | V12: 0 | W12: 0.017 | X12: 0 | Y12: =U12/S12*100 -> 0 | AA12: 62.31 | AB12: 2492.4 | AC12: 0 | AD12: 0 | AE12: 0.05 | AF12: 0 | AG12: =AC12/AA12*100 -> 0 | AH12: 0 | AI12: 210.97 | AJ12: 23206.7 | AK12: 583.9 | AL12: 64229 | AM12: 0.05 | AN12: 29195 | AO12: 276.7692089 | AP12: 125.8041859 | AQ12: 141.09 | AS12: 0 | AT12: 0.015 | AU12: =AS12/AQ12*100 -> 0 | AV12: 190.22 | AW12: 2853.3 | AX12: 505.68 | AY12: 7585.2 | AZ12: 0.006 | BA12: 3034.08 | BB12: 265.8395542 | BC12: 106.3358217 | BD12: 220.71 | BE12: 5076.33 | BF12: 0 | BG12: 0 | BH12: 0.02 | BI12: 0 | BJ12: =BF12/BD12*100 -> 0 | BL12: 101.12 | BM12: 7078.4 | BN12: 149.57 | BO12: 10469.9 | BP12: 0.05 | BQ12: 7478.5 | BR12: =BN12/BL12*100 -> 147.9133703 | BS12: 105.6524073 | BT12: 23.03 | BU12: 345.45 | BV12: 109.82 | BW12: 7687.4 | BX12: 0.01 | BY12: 1098.2 | BZ12: =BV12/BT12*100 -> 476.8562744 | CA12: 317.9041829 | CB12: 0.29 | CD12: 0 | CF12: =CD12/CB12*100 -> 0 | CG12: 3 | CH12: 120 | CI12: 0 | CJ12: 0 | CK12: 0.045 | CL12: 0 | CM12: =CI12/CG12*100 -> 0 | CO12: 190.22 | CP12: 2853.3 | CQ12: 252.12 | CR12: 7563.6 | CS12: 0.015 | CT12: 3781.8 | CU12: =CQ12/CO12*100 -> 132.541268 | CV12: 132.541268
J13: =AVERAGE(J11:J12) -> 0 | R13: =AVERAGE(R11:R12) -> 113.0783804 | AH13: =AVERAGE(AH11:AH12) -> 0 | AP13: =AVERAGE(AP11:AP12) -> 119.8644141 | BC13: =AVERAGE(BC11:BC12) -> 106.3358217 | BS13: =AVERAGE(BS11:BS12) -> 112.3523678 | CA13: =AVERAGE(CA11:CA12) -> 302.8925427 | CB13: 0.29 | CD13: 0 | CF13: 0 | CN13: 109.5 | CV13: 123.8600283
A14: 6 | B14: Верх-Обский | C14: 192.89 | D14: 7715.6 | E14: 451.08 | F14: =E14*0.04*1000 -> 18043.2 | G14: 0.02 | H14: =E14*G14*1000 -> 9021.6 | I14: =E14/C14*100 -> 233.8534916 | J14: =H14/D14*100 -> 116.9267458 | K14: 33.69 | L14: 1347.6 | M14: 69.74 | N14: 2789.6 | O14: 0.02 | P14: 1394.8 | Q14: =M14/K14*100 -> 207.005046 | R14: =P14/L14*100 -> 103.502523 | S14: 286.73 | T14: 8601.9 | U14: 532.65 | V14: 15979.5 | W14: 0.017 | X14: 9055.05 | Y14: =U14/S14*100 -> 185.767098 | Z14: 105.2680222 | AA14: 62.31 | AB14: 2492.4 | AC14: 0 | AD14: =AC14*0.04*1000 -> 0 | AE14: 0.05 | AF14: =AC14*AE14*1000 -> 0 | AG14: =AC14/AA14*100 -> 0 | AI14: 289.99 | AJ14: 31898.9 | AK14: 664.95 | AL14: 73144.5 | AM14: 0.06 | AN14: 39897 | AO14: 229.3010104 | AP14: 125.0732784 | AQ14: 141.09 | AS14: 0 | AT14: 0.015 | AU14: =AS14/AQ14*100 -> 0 | AV14: 272.45 | AW14: 4086.75 | AX14: 575.87 | AY14: 8638.05 | AZ14: 0.008 | BA14: 4606.96 | BB14: 211.3672233 | BC14: 112.7291858 | BD14: 220.71 | BE14: 5076.33 | BF14: 548.29 | BG14: 12610.67 | BH14: 0.01 | BI14: 5482.9 | BJ14: =BF14/BD14*100 -> 248.4210049 | BK14: =BI14/BE14*100 -> 108.0091326 | BL14: 87.35 | BM14: 6114.5 | BN14: 170.33 | BO14: 11923.1 | BP14: 0.04 | BQ14: 6813.2 | BR14: =BN14/BL14*100 -> 194.997138 | BS14: 111.426936 | BT14: 31.66 | BU14: 474.9 | BV14: 125.07 | BW14: 8754.9 | BX14: 0.01 | BY14: 1250.7 | BZ14: =BV14/BT14*100 -> 395.0410613 | CA14: 263.3607075 | CB14: 0.29 | CD14: 0 | CF14: =CD14/CB14*100 -> 0 | CG14: 3 | CH14: 120 | CI14: 2.92 | CJ14: 116.8 | CK14: 0.045 | CL14: 131.4 | CM14: =CI14/CG14*100 -> 97.33333333 | CN14: 109.5 | CO14: 272.45 | CP14: 4086.75 | CQ14: 287.11 | CR14: 8613.3 | CS14: 0.015 | CT14: 4306.65 | CU14: =CQ14/CO14*100 -> 105.3808038 | CV14: =CT14/CP14*100 -> 105.3808038
A15: 7 | B15: Иконниково | C15: 192.89 | D15: 7715.6 | E15: 0 | F15: 0 | G15: 0.02 | H15: 0 | I15: 0 | K15: 25.85 | L15: 1034 | M15: 70.25 | N15: 2810 | O15: 0.02 | P15: 1405 | Q15: 271.7601547 | R15: 135.8800774 | S15: 173.95 | T15: 5218.5 | U15: 0 | V15: 0 | W15: 0.017 | X15: 0 | Y15: 0 | AA15: 62.31 | AB15: 2492.4 | AC15: 43.63 | AD15: 1745.2 | AE15: 0.05 | AF15: 2181.5 | AG15: 70.02086342 | AH15: =AF15/AB15*100 -> 87.52607928 | AI15: 222.51 | AJ15: 24476.1 | AK15: 669.81 | AL15: 73679.1 | AM15: 0.06 | AN15: 40188.6 | AO15: 301.024673 | AP15: 164.1952762 | AQ15: 141.09 | AS15: 0 | AT15: 0.015 | AU15: 0 | AV15: 209.05 | AW15: 3135.75 | AX15: 0 | AY15: 0 | AZ15: 0.008 | BA15: 0 | BB15: 0 | BD15: 220.71 | BE15: 5076.33 | BF15: 552.3 | BG15: 12702.9 | BH15: 0.01 | BI15: 5523 | BJ15: 250.2378687 | BK15: 108.7990733 | BL15: 67.02 | BM15: 4691.4 | BN15: 171.57 | BO15: 12009.9 | BP15: 0.04 | BQ15: 6862.8 | BR15: 255.9982095 | BS15: 146.2846911 | BT15: 38.83 | BU15: 582.45 | BV15: 125.98 | BW15: 8818.6 | BX15: 0.01 | BY15: 1259.8 | BZ15: 324.4398661 | CA15: 216.2932441 | CB15: 0.29 | CD15: 0 | CF15: 0 | CG15: 3 | CH15: 120 | CI15: 2.92 | CJ15: 116.8 | CK15: 0.045 | CL15: 131.4 | CM15: 97.33333333 | CN15: 109.5 | CO15: 209.05 | CP15: 3135.75 | CQ15: 289.21 | CR15: 8676.3 | CS15: 0.015 | CT15: 4338.15 | CU15: 138.3448936 | CV15: 138.3448936
A16: 8 | B16: Нефтебаза | C16: 192.89 | D16: 7715.6 | E16: 0 | F16: 0 | G16: 0.02 | H16: 0 | I16: 0 | K16: 25.41 | L16: 1016.4 | M16: 66.61 | N16: 2664.4 | O16: 0.02 | P16: 1332.2 | Q16: 262.1408894 | R16: 131.0704447 | S16: 286.73 | T16: 8601.9 | U16: 0 | V16: 0 | W16: 0.017 | X16: 0 | Y16: 0 | AA16: 62.31 | AB16: 2492.4 | AC16: 0 | AD16: 0 | AE16: 0.05 | AF16: 0 | AG16: 0 | AI16: 405.2 | AJ16: 44572 | AK16: 0 | AL16: 0 | AM16: 0.06 | AN16: 0 | AQ16: 141.09 | AS16: 0 | AT16: 0.015 | AU16: 0 | AV16: 345.51 | AW16: 5182.65 | AX16: 0 | AY16: 0 | AZ16: 0.008 | BA16: 0 | BB16: 0 | BD16: 220.71 | BE16: 5076.33 | BF16: 0 | BG16: 0 | BH16: 0.01 | BI16: 0 | BJ16: 0 | BL16: 101.12 | BM16: 7078.4 | BN16: 0 | BO16: 0 | BP16: 0.04 | BQ16: 0 | BR16: 0 | BT16: 38.83 | BU16: 582.45 | BV16: 0 | BW16: 0 | BX16: 0.01 | BY16: 0 | BZ16: 0 | CB16: 0.29 | CD16: 0 | CF16: 0 | CG16: 3 | CH16: 120 | CI16: 0 | CJ16: 0 | CK16: 0.045 | CL16: 0 | CM16: 0 | CO16: 345.51 | CP16: 5182.65 | CQ16: 0 | CR16: 0 | CS16: 0.015 | CT16: 0 | CU16: 0
A17: 9 | B17: Маточный | C17: 192.89 | D17: 7715.6 | E17: 0 | F17: 0 | G17: 0.02 | H17: 0 | I17: 0 | K17: 24.84 | L17: 993.6 | M17: 65.17 | N17: 2606.8 | O17: 0.02 | P17: 1303.4 | Q17: 262.3590982 | R17: 131.1795491 | S17: 286.73 | T17: 8601.9 | U17: 0 | V17: 0 | W17: 0.017 | X17: 0 | Y17: 0 | AA17: 62.31 | AB17: 2492.4 | AC17: 0 | AD17: 0 | AE17: 0.05 | AF17: 0 | AG17: 0 | AI17: 289.99 | AJ17: 31898.9 | AK17: 621.37 | AL17: 68350.7 | AM17: 0.06 | AN17: 37282.2 | AO17: 214.272906 | AP17: 116.8761305 | AQ17: 141.09 | AS17: 0 | AT17: 0.015 | AU17: 0 | AV17: 272.45 | AW17: 4086.75 | AX17: 0 | AY17: 0 | AZ17: 0.008 | BA17: 0 | BB17: 0 | BD17: 220.71 | BE17: 5076.33 | BF17: 0 | BG17: 0 | BH17: 0.01 | BI17: 0 | BJ17: 0 | BL17: 64.27 | BM17: 4498.9 | BN17: 159.17 | BO17: 11141.9 | BP17: 0.04 | BQ17: 6366.8 | BR17: 247.6583165 | BS17: 141.519038 | BT17: 31.66 | BU17: 474.9 | BV17: 0 | BW17: 0 | BX17: 0.01 | BY17: 0 | BZ17: 0 | CB17: 0.29 | CD17: 0 | CF17: 0 | CG17: 3 | CH17: 120 | CI17: 2.92 | CJ17: 116.8 | CK17: 0.045 | CL17: 131.4 | CM17: 97.33333333 | CN17: 109.5 | CO17: 272.45 | CP17: 4086.75 | CQ17: 0 | CR17: 0 | CS17: 0.015 | CT17: 0 | CU17: 0
A18: 10 | B18: Кирпичный | C18: 192.89 | D18: 7715.6 | E18: 0 | F18: 0 | G18: 0.02 | H18: 0 | I18: 0 | K18: 25.28 | L18: 1011.2 | M18: 66.8 | N18: 2672 | O18: 0.02 | P18: 1336 | Q18: 264.2405063 | R18: 132.1202532 | S18: 286.73 | T18: 8601.9 | U18: 0 | V18: 0 | W18: 0.017 | X18: 0 | Y18: 0 | AA18: 62.31 | AB18: 2492.4 | AC18: 0 | AD18: 0 | AE18: 0.05 | AF18: 0 | AG18: 0 | AI18: 405.2 | AJ18: 44572 | AK18: 0 | AL18: 0 | AM18: 0.06 | AN18: 0 | AO18: 0 | AQ18: 141.09 | AS18: 0 | AT18: 0.015 | AU18: 0 | AV18: 345.51 | AW18: 5182.65 | AX18: 0 | AY18: 0 | AZ18: 0.008 | BA18: 0 | BB18: 0 | BD18: 220.71 | BE18: 5076.33 | BF18: 0 | BG18: 0 | BH18: 0.01 | BI18: 0 | BJ18: 0 | BL18: 101.12 | BM18: 7078.4 | BN18: 0 | BO18: 0 | BP18: 0.04 | BQ18: 0 | BR18: 0 | BT18: 23.75 | BU18: 356.25 | BV18: 119.8 | BW18: 8386 | BX18: 0.01 | BY18: 1198 | BZ18: 504.4210526 | CA18: 336.2807018 | CB18: 0.29 | CD18: 0 | CF18: 0 | CG18: 3 | CH18: 120 | CI18: 0 | CJ18: 0 | CK18: 0.045 | CL18: 0 | CM18: 0 | CO18: 345.51 | CP18: 5182.65 | CQ18: 0 | CR18: 0 | CS18: 0.015 | CT18: 0 | CU18: 0
A19: 11 | B19: Усть-Катунь | C19: 192.89 | D19: 7715.6 | E19: 450.11 | F19: 18004.4 | G19: 0.02 | H19: 9002.2 | I19: 233.3506143 | J19: 116.6753072 | K19: 30.1 | L19: 1204 | M19: 69.59 | N19: 2783.6 | O19: 0.02 | P19: 1391.8 | Q19: 231.1960133 | R19: 115.5980066 | S19: 286.73 | T19: 8601.9 | U19: 0 | V19: 0 | W19: 0.017 | X19: 0 | Y19: 0 | AA19: 62.31 | AB19: 2492.4 | AC19: 0 | AD19: 0 | AE19: 0.05 | AF19: 0 | AG19: 0 | AI19: 259.09 | AJ19: 28499.9 | AK19: 663.52 | AL19: 72987.2 | AM19: 0.06 | AN19: 39811.2 | AO19: 256.0963372 | AP19: 139.6889112 | AQ19: 141.09 | AS19: 0 | AT19: 0.015 | AU19: 0 | AV19: 243.42 | AW19: 3651.3 | AX19: 0 | AY19: 0 | AZ19: 0.008 | BA19: 0 | BB19: 0 | BD19: 220.71 | BE19: 5076.33 | BF19: 547.11 | BG19: 12583.53 | BH19: 0.01 | BI19: 5471.1 | BJ19: 247.8863667 | BK19: 107.7766812 | BL19: 78.04 | BM19: 5462.8 | BN19: 169.96 | BO19: 11897.2 | BP19: 0.04 | BQ19: 6798.4 | BR19: 217.7857509 | BS19: 124.4490005 | BT19: 38.83 | BU19: 582.45 | BV19: 0 | BW19: 0 | BX19: 0.01 | BY19: 0 | BZ19: 0 | CB19: 0.29 | CD19: 0 | CF19: 0 | CG19: 3 | CH19: 120 | CI19: 0 | CJ19: 0 | CK19: 0.045 | CL19: 0 | CM19: 0 | CO19: 243.42 | CP19: 3651.3 | CQ19: 286.49 | CR19: 8594.7 | CS19: 0.015 | CT19: 4297.35 | CU19: 117.6936981 | CV19: 117.6936981
A20: 12 | B20: Молочный | C20: 192.89 | D20: 7715.6 | E20: 0 | F20: 0 | G20: 0.02 | H20: 0 | I20: 0 | K20: 24.15 | L20: 966 | M20: 63.94 | N20: 2557.6 | O20: 0.02 | P20: 1278.8 | Q20: 264.7619048 | R20: 132.3809524 | S20: 286.73 | T20: 8601.9 | U20: 488.35 | V20: 14650.5 | W20: 0.017 | X20: 8301.95 | Y20: 170.317023 | Z20: 96.51297969 | AA20: 62.31 | AB20: 2492.4 | AC20: 0 | AD20: 0 | AE20: 0.05 | AF20: 0 | AG20: 0 | AI20: 405.2 | AJ20: 44572 | AK20: 609.65 | AL20: 67061.5 | AM20: 0.06 | AN20: 36579 | AO20: 150.4565647 | AP20: 82.06721709 | AQ20: 141.09 | AS20: 0 | AT20: 0.015 | AU20: 0 | AV20: 345.51 | AW20: 5182.65 | AX20: 0 | AY20: 0 | AZ20: 0.008 | BA20: 0 | BB20: 0 | BD20: 220.71 | BE20: 5076.33 | BF20: 0 | BG20: 0 | BH20: 0.01 | BI20: 0 | BJ20: 0 | BL20: 101.12 | BM20: 7078.4 | BN20: 0 | BO20: 0 | BP20: 0.04 | BQ20: 0 | BR20: 0 | BT20: 22.69 | BU20: 340.35 | BV20: 114.67 | BW20: 8026.9 | BX20: 0.01 | BY20: 1146.7 | BZ20: 505.376818 | CA20: 336.9178787 | CB20: 0.29 | CD20: 0 | CF20: 0 | CG20: 3 | CH20: 120 | CI20: 2.92 | CJ20: 116.8 | CK20: 0.045 | CL20: 131.4 | CM20: 97.33333333 | CN20: 109.5 | CO20: 345.51 | CP20: 5182.65 | CQ20: 0 | CR20: 0 | CS20: 0.015 | CT20: 0 | CU20: 0
A21: 13 | B21: Катунское | C21: 192.89 | D21: 7715.6 | E21: 0 | F21: 0 | G21: 0.02 | H21: 0 | I21: 0 | K21: 29.9 | L21: 1196 | M21: 74.88 | N21: 2995.2 | O21: 0.02 | P21: 1497.6 | Q21: 250.4347826 | R21: 125.2173913 | S21: 286.73 | T21: 8601.9 | U21: 0 | V21: 0 | W21: 0.017 | X21: 0 | Y21: 0 | AA21: 62.31 | AB21: 2492.4 | AC21: 0 | AD21: 0 | AE21: 0.05 | AF21: 0 | AG21: 0 | AI21: 257.37 | AJ21: 28310.7 | AK21: 713.96 | AL21: 78535.6 | AM21: 0.06 | AN21: 42837.6 | AO21: 277.4060691 | AP21: 151.3124013 | AQ21: 141.09 | AS21: 0 | AT21: 0.015 | AU21: 0 | AV21: 241.8 | AW21: 3627 | AX21: 0 | AY21: 0 | AZ21: 0.008 | BA21: 0 | BB21: 0 | BD21: 264.56 | BE21: 6084.88 | BF21: 588.7 | BG21: 13540.1 | BH21: 0.01 | BI21: 5887 | BJ21: 222.5204112 | BK21: 96.74800489 | BL21: 77.52 | BM21: 5426.4 | BN21: 182.88 | BO21: 12801.6 | BP21: 0.04 | BQ21: 7315.2 | BR21: 235.9133127 | BS21: 134.8076073 | BT21: 28.09 | BU21: 421.35 | BV21: 134.29 | BW21: 9400.3 | BX21: 0.01 | BY21: 1342.9 | BZ21: 478.0704877 | CA21: 318.7136585 | CB21: 0.29 | CD21: 0 | CF21: 0 | CG21: 3 | CH21: 120 | CI21: 2.92 | CJ21: 116.8 | CK21: 0.045 | CL21: 131.4 | CM21: 97.33333333 | CN21: 109.5 | CO21: 241.8 | CP21: 3627 | CQ21: 308.27 | CR21: 9248.1 | CS21: 0.015 | CT21: 4624.05 | CU21: 127.4896609 | CV21: 127.4896609
A22: 14 | B22: Красный Маяк | C22: 192.89 | D22: 7715.6 | E22: 0 | F22: 0 | G22: 0.02 | H22: 0 | I22: 0 | K22: 28.31 | L22: 1132.4 | M22: 75.04 | N22: 3001.6 | O22: 0.02 | P22: 1500.8 | Q22: 265.0653479 | R22: 132.532674 | S22: 286.73 | T22: 8601.9 | U22: 0 | V22: 0 | W22: 0.017 | X22: 0 | Y22: 0 | AA22: 62.31 | AB22: 2492.4 | AC22: 0 | AD22: 0 | AE22: 0.05 | AF22: 0 | AG22: 0 | AI22: 405.2 | AJ22: 44572 | AK22: 715.48 | AL22: 78702.8 | AM22: 0.06 | AN22: 42928.8 | AO22: 176.5745311 | AP22: 96.3133806 | AQ22: 141.09 | AS22: 0 | AT22: 0.015 | AU22: 0 | AV22: 228.95 | AW22: 3434.25 | AX22: 0 | AY22: 0 | AZ22: 0.008 | BA22: 0 | BB22: 0 | BD22: 220.71 | BE22: 5076.33 | BF22: 589.95 | BG22: 13568.85 | BH22: 0.01 | BI22: 5899.5 | BJ22: 267.2964524 | BK22: 116.2158489 | BL22: 101.12 | BM22: 7078.4 | BN22: 183.27 | BO22: 12828.9 | BP22: 0.04 | BQ22: 7330.8 | BR22: 181.2401108 | BS22: 103.5657776 | BT22: 26.6 | BU22: 399 | BV22: 134.57 | BW22: 9419.9 | BX22: 0.01 | BY22: 1345.7 | BZ22: 505.9022556 | CA22: 337.2681704 | CB22: 0.29 | CD22: 0 | CF22: 0 | CG22: 3 | CH22: 120 | CI22: 2.92 | CJ22: 116.8 | CK22: 0.045 | CL22: 131.4 | CM22: 97.33333333 | CN22: 109.5 | CO22: 228.95 | CP22: 3434.25 | CQ22: 0 | CR22: 0 | CS22: 0.015 | CT22: 0 | CU22: 0
J23: =AVERAGE(J14:J22) -> 116.8010265 | R23: =AVERAGE(R14:R22) -> 126.6090969 | Z23: =AVERAGE(Z14:Z22) -> 100.8905009 | AH23: =AVERAGE(AH14:AH22) -> 87.52607928 | AP23: =AVERAGE(AP14:AP22) -> 125.0752279 | BC23: =AVERAGE(BC14:BC22) -> 112.7291858 | BK23: =AVERAGE(BK14:BK22) -> 107.5097482 | BS23: =AVERAGE(BS14:BS22) -> 127.0088417 | CA23: 301.4723935 | CB23: 0.29 | CD23: 0 | CF23: 0 | CN23: 109.5 | CV23: 122.2272641
A24: 15 | B24: Кировский | C24: 192.89 | D24: 7715.6 | E24: 545.25 | F24: =E24*0.04*1000 -> 21810 | G24: 0.016 | H24: =E24*G24*1000 -> 8724 | I24: =E24/C24*100 -> 282.6740629 | J24: =H24/D24*100 -> 113.0696252 | K24: 33.51 | L24: 1340.4 | M24: 84.3 | N24: 3372 | O24: 0.016 | P24: 1348.8 | Q24: =M24/K24*100 -> 251.5666965 | R24: =P24/L24*100 -> 100.6266786 | S24: 286.73 | T24: 8601.9 | U24: 643.86 | V24: 19315.8 | W24: 0.017 | X24: 10945.62 | Y24: =U24/S24*100 -> 224.5527151 | Z24: 127.2465386 | AA24: 62.31 | AB24: 2492.4 | AC24: 0 | AE24: 0.05 | AG24: =AC24/AA24*100 -> 0 | AI24: 288.44 | AJ24: 31728.4 | AK24: 803.77 | AL24: 88414.7 | AM24: 0.045 | AN24: 36169.65 | AO24: 278.6610734 | AP24: 113.9977118 | AQ24: 191.09 | AS24: 0 | AT24: 0.015 | AU24: =AS24/AQ24*100 -> 0 | AV24: 271 | AW24: 4065 | AX24: 696.1 | AY24: 10441.5 | AZ24: 0.006 | BA24: 4176.6 | BB24: 256.8634686 | BC24: 102.7453875 | BD24: 220.71 | BE24: 5076.33 | BF24: 662.76 | BG24: 15243.48 | BH24: 0.01 | BI24: 6627.6 | BJ24: =BF24/BD24*100 -> 300.2854424 | BK24: 130.558888 | BL24: 86.88 | BM24: 6081.6 | BN24: 205.89 | BO24: 14412.3 | BP24: 0.04 | BQ24: 8235.6 | BR24: =BN24/BL24*100 -> 236.9820442 | BS24: 135.418311 | BT24: 31.49 | BU24: 472.35 | BV24: 151.18 | BW24: 10582.6 | BX24: 0.01 | BY24: 1511.8 | BZ24: =BV24/BT24*100 -> 480.0889171 | CA24: 320.0592781 | CB24: 0.29 | CD24: 0 | CF24: =CD24/CB24*100 -> 0 | CG24: 3 | CH24: 120 | CI24: 2.92 | CJ24: 116.8 | CK24: 0.045 | CL24: 131.4 | CM24: =CI24/CG24*100 -> 97.33333333 | CN24: 109.5 | CO24: 271 | CP24: 4065 | CQ24: 347.05 | CR24: 10411.5 | CS24: 0.015 | CT24: 5205.75 | CU24: =CQ24/CO24*100 -> 128.0627306 | CV24: =CT24/CP24*100 -> 128.0627306
A25: 16 | B25: Михайловка | C25: 192.89 | D25: 7715.6 | E25: 0 | F25: 0 | G25: 0.016 | H25: 0 | I25: 0 | K25: 26.57 | L25: 1062.8 | M25: 70.71 | N25: 2828.4 | O25: 0.016 | P25: 1131.36 | Q25: 266.1272111 | R25: 106.4508845 | S25: 286.73 | T25: 8601.9 | U25: 0 | V25: 0 | W25: 0.017 | X25: 0 | Y25: 0 | AA25: 62.31 | AB25: 2492.4 | AC25: 0 | AE25: 0.05 | AG25: 0 | AI25: 405.2 | AJ25: 44572 | AK25: 0 | AL25: 0 | AM25: 0.045 | AN25: 0 | AO25: 0 | AQ25: 141.09 | AS25: 0 | AT25: 0.015 | AU25: 0 | AV25: 345.51 | AW25: 5182.65 | AX25: 0 | AY25: 0 | AZ25: 0.006 | BA25: 0 | BB25: 0 | BD25: 220.71 | BE25: 5076.33 | BF25: 0 | BG25: 0 | BH25: 0.01 | BI25: 0 | BJ25: 0 | BL25: 101.12 | BM25: 7078.4 | BN25: 0 | BO25: 0 | BP25: 0.04 | BQ25: 0 | BR25: 0 | BT25: 38.83 | BU25: 582.45 | BV25: 0 | BW25: 0 | BX25: 0.01 | BY25: 0 | BZ25: 0 | CB25: 0.29 | CD25: 0 | CF25: 0 | CG25: 3 | CH25: 120 | CI25: 2.92 | CJ25: 116.8 | CK25: 0.045 | CL25: 131.4 | CM25: 97.33333333 | CN25: 109.5 | CO25: 345.51 | CP25: 5182.65 | CQ25: 0 | CR25: 0 | CS25: 0.015 | CT25: 0 | CU25: 0
A26: 17 | B26: Степное | C26: 192.89 | D26: 7715.6 | E26: 0 | F26: 0 | G26: 0.016 | H26: 0 | I26: 0 | K26: 24.49 | L26: 979.6 | M26: 62.28 | N26: 2491.2 | O26: 0.016 | P26: 996.48 | Q26: 254.3078808 | R26: 101.7231523 | S26: 286.73 | T26: 8601.9 | U26: 0 | V26: 0 | W26: 0.017 | X26: 0 | Y26: 0 | AA26: 62.31 | AB26: 2492.4 | AC26: 0 | AE26: 0.05 | AG26: 0 | AI26: 405.2 | AJ26: 44572 | AK26: 0 | AL26: 0 | AM26: 0.045 | AN26: 0 | AO26: 0 | AQ26: 141.09 | AS26: 0 | AT26: 0.015 | AU26: 0 | AV26: 198.05 | AW26: 2970.75 | AX26: 0 | AY26: 0 | AZ26: 0.006 | BA26: 0 | BB26: 0 | BD26: 220.71 | BE26: 5076.33 | BF26: 0 | BG26: 0 | BH26: 0.01 | BI26: 0 | BJ26: 0 | BL26: 101.12 | BM26: 7078.4 | BN26: 152.11 | BO26: 10647.7 | BP26: 0.04 | BQ26: 6084.4 | BR26: 150.4252373 | BS26: 85.95727848 | BT26: 38.83 | BU26: 582.45 | BV26: 0 | BW26: 0 | BX26: 0.01 | BY26: 0 | BZ26: 0 | CB26: 0.29 | CD26: 0.29 | CF26: 100 | CG26: 3 | CH26: 120 | CI26: 2.92 | CJ26: 116.8 | CK26: 0.045 | CL26: 131.4 | CM26: 97.33333333 | CN26: 109.5 | CO26: 198.05 | CP26: 2970.75 | CQ26: 256.4 | CR26: 7692 | CS26: 0.015 | CT26: 3846 | CU26: 129.462257 | CV26: 129.462257
A27: 18 | B27: Речной | C27: 192.89 | D27: 7715.6 | E27: 0 | F27: 0 | G27: 0.016 | H27: 0 | I27: 0 | K27: 27.85 | L27: 1114 | M27: 75.82 | N27: 3032.8 | O27: 0.016 | P27: 1213.12 | Q27: 272.2441652 | R27: 108.8976661 | S27: 286.73 | T27: 8601.9 | U27: 0 | V27: 0 | W27: 0.017 | X27: 0 | Y27: 0 | AA27: 62.31 | AB27: 2492.4 | AC27: 0 | AE27: 0.05 | AG27: 0 | AI27: 405.2 | AJ27: 44572 | AK27: 722.92 | AL27: 79521.2 | AM27: 0.045 | AN27: 32531.4 | AO27: 178.4106614 | AP27: 72.98617966 | AQ27: 141.09 | AS27: 0 | AT27: 0.015 | AU27: 0 | AV27: 225.23 | AW27: 3378.45 | AX27: 0 | AY27: 0 | AZ27: 0.006 | BA27: 0 | BB27: 0 | BD27: 220.71 | BE27: 5076.33 | BF27: 0 | BG27: 0 | BH27: 0.01 | BI27: 0 | BJ27: 0 | BL27: 101.12 | BM27: 7078.4 | BN27: 0 | BO27: 0 | BP27: 0.04 | BQ27: 0 | BR27: 0 | BT27: 38.83 | BU27: 582.45 | BV27: 0 | BW27: 0 | BX27: 0.01 | BY27: 0 | BZ27: 0 | CB27: 0.29 | CD27: 0 | CF27: 0 | CG27: 3 | CH27: 120 | CI27: 2.92 | CJ27: 116.8 | CK27: 0.045 | CL27: 131.4 | CM27: 97.33333333 | CN27: 109.5 | CO27: 225.23 | CP27: 3378.45 | CQ27: 0 | CR27: 0 | CS27: 0.015 | CT27: 0 | CU27: 0
A28: 19 | B28: Раздольный | C28: 192.89 | D28: 7715.6 | E28: 0 | F28: 0 | G28: 0.016 | H28: 0 | I28: 0 | K28: 27.36 | L28: 1094.4 | M28: 77.76 | N28: 3110.4 | O28: 0.016 | P28: 1244.16 | Q28: 284.2105263 | R28: 113.6842105 | S28: 286.73 | T28: 8601.9 | U28: 0 | V28: 0 | W28: 0.017 | X28: 0 | Y28: 0 | AA28: 62.31 | AB28: 2492.4 | AC28: 0 | AE28: 0.05 | AG28: 0 | AI28: 405.2 | AJ28: 44572 | AK28: 0 | AL28: 0 | AM28: 0.045 | AN28: 0 | AO28: 0 | AQ28: 141.09 | AS28: 0 | AT28: 0.015 | AU28: 0 | AV28: 221.26 | AW28: 3318.9 | AX28: 0 | AY28: 0 | AZ28: 0.006 | BA28: 0 | BB28: 0 | BD28: 220.71 | BE28: 5076.33 | BF28: 0 | BG28: 0 | BH28: 0.01 | BI28: 0 | BJ28: 0 | BL28: 101.12 | BM28: 7078.4 | BN28: 0 | BO28: 0 | BP28: 0.04 | BQ28: 0 | BR28: 0 | BT28: 38.83 | BU28: 582.45 | BV28: 0 | BW28: 0 | BX28: 0.01 | BY28: 0 | BZ28: 0 | CB28: 0.29 | CD28: 0 | CF28: 0 | CG28: 3 | CH28: 120 | CI28: 2.92 | CJ28: 116.8 | CK28: 0.045 | CL28: 131.4 | CM28: 97.33333333 | CN28: 109.5 | CO28: 221.26 | CP28: 3318.9 | CQ28: 0 | CR28: 0 | CS28: 0.015 | CT28: 0 | CU28: 0
A29: 20 | B29: Александровка | C29: 192.89 | D29: 7715.6 | E29: 0 | F29: 0 | G29: 0.016 | H29: 0 | I29: 0 | K29: 29.66 | L29: 1186.4 | M29: 74.68 | N29: 2987.2 | O29: 0.016 | P29: 1194.88 | Q29: 251.7869184 | R29: 100.7147674 | S29: 286.73 | T29: 8601.9 | U29: 0 | V29: 0 | W29: 0.017 | X29: 0 | Y29: 0 | AA29: 62.31 | AB29: 2492.4 | AC29: 0 | AE29: 0.05 | AG29: 0 | AI29: 255.3 | AJ29: 28083 | AK29: 712.05 | AL29: 78325.5 | AM29: 0.045 | AN29: 32042.25 | AO29: 278.907168 | AP29: 114.0983869 | AQ29: 141.09 | AS29: 0 | AT29: 0.015 | AU29: 0 | AV29: 239.86 | AW29: 3597.9 | AX29: 0 | AY29: 0 | AZ29: 0.006 | BA29: 0 | BB29: 0 | BD29: 220.71 | BE29: 5076.33 | BF29: 0 | BG29: 0 | BH29: 0.01 | BI29: 0 | BJ29: 0 | BL29: 101.12 | BM29: 7078.4 | BN29: 182.39 | BO29: 12767.3 | BP29: 0.04 | BQ29: 7295.6 | BR29: 180.3698576 | BS29: 103.0684901 | BT29: 38.83 | BU29: 582.45 | BV29: 0 | BW29: 0 | BX29: 0.01 | BY29: 0 | BZ29: 0 | CB29: 0.29 | CD29: 0 | CF29: 0 | CG29: 3 | CH29: 120 | CI29: 2.92 | CJ29: 116.8 | CK29: 0.045 | CL29: 131.4 | CM29: 97.33333333 | CN29: 109.5 | CO29: 239.86 | CP29: 3597.9 | CQ29: 307.45 | CR29: 9223.5 | CS29: 0.015 | CT29: 4611.75 | CU29: 128.1789377 | CV29: 128.1789377
J30: =AVERAGE(J24:J29) -> 113.0696252 | R30: =AVERAGE(R24:R29) -> 105.3495599 | Z30: =AVERAGE(Z24:Z29) -> 127.2465386 | AP30: =AVERAGE(AP24:AP29) -> 100.3607595 | BC30: =AVERAGE(BC24:BC29) -> 102.7453875 | BK30: =AVERAGE(BK24:BK29) -> 130.558888 | BS30: =AVERAGE(BS24:BS29) -> 108.1480265 | CA30: 320.0592781 | CB30: 0.29 | CD30: 0.04833333333 | CF30: 16.66666667 | CN30: 109.5 | CV30: 128.5679751
A31: 21 | B31: Линевский | C31: 192.89 | D31: 7715.6 | E31: 0 | F31: =E31*0.04*1000 -> 0 | G31: 0.018 | H31: =E31*G31*1000 -> 0 | I31: =E31/C31*100 -> 0 | J31: =H31/D31*100 -> 0 | K31: 32.56 | L31: 1302.4 | M31: 74.9 | N31: 2996 | O31: 0.018 | P31: 1348.2 | Q31: =M31/K31*100 -> 230.036855 | R31: =P31/L31*100 -> 103.5165848 | S31: 286.73 | T31: 8601.9 | U31: 0 | V31: 0 | W31: 0.017 | X31: 0 | Y31: =U31/S31*100 -> 0 | AA31: 62.31 | AB31: 2492.4 | AC31: 0 | AE31: 0.05 | AG31: =AC31/AA31*100 -> 0 | AI31: 280.27 | AJ31: 30829.7 | AK31: 714.15 | AL31: 78556.5 | AM31: 0.05 | AN31: 35707.5 | AO31: 254.8078638 | AP31: 115.8217563 | AQ31: 141.09 | AS31: 0 | AT31: 0.015 | AU31: =AS31/AQ31*100 -> 0 | AV31: 263.32 | AW31: 3949.8 | AX31: 618.48 | AY31: 9277.2 | AZ31: 0.007 | BA31: 4329.36 | BB31: 234.8777153 | BC31: 109.6096005 | BD31: 220.71 | BE31: 5076.33 | BF31: 0 | BG31: 0 | BH31: 0.01 | BI31: 0 | BJ31: =BF31/BD31*100 -> 0 | BK31: 0 | BL31: 84.42 | BM31: 5909.4 | BN31: 182.93 | BO31: 12805.1 | BP31: 0.035 | BQ31: 6402.55 | BR31: =BN31/BL31*100 -> 216.6903577 | BS31: 108.3451789 | BT31: 30.59 | BU31: 458.85 | BV31: 134.32 | BW31: 9402.4 | BX31: 0.01 | BY31: 1343.2 | BZ31: =BV31/BT31*100 -> 439.0977444 | CA31: 292.7318296 | CB31: 0.29 | CD31: 0 | CF31: =CD31/CB31*100 -> 0 | CG31: 3 | CH31: 120 | CI31: 2.92 | CJ31: 116.8 | CK31: 0.045 | CL31: 131.4 | CM31: =CI31/CG31*100 -> 97.33333333 | CN31: 109.5 | CO31: 263.32 | CP31: 3949.8 | CQ31: 308.35 | CR31: 9250.5 | CS31: 0.015 | CT31: 4625.25 | CU31: =CQ31/CO31*100 -> 117.1008659 | CV31: =CT31/CP31*100 -> 117.1008659
A32: 22 | B32: Заречный | C32: 192.89 | D32: 7715.6 | E32: 0 | F32: 0 | G32: 0.018 | H32: 0 | I32: =E32/C32*100 -> 0 | J32: =H32/D32*100 -> 0 | K32: 28.26 | L32: 1130.4 | M32: 67.29 | N32: 2691.6 | O32: 0.018 | P32: 1211.22 | Q32: =M32/K32*100 -> 238.1104034 | R32: =P32/L32*100 -> 107.1496815 | S32: 286.73 | T32: 8601.9 | U32: 0 | V32: 0 | W32: 0.017 | X32: 0 | Y32: =U32/S32*100 -> 0 | AA32: 62.31 | AB32: 2492.4 | AC32: 0 | AE32: 0.05 | AG32: =AC32/AA32*100 -> 0 | AI32: 243.25 | AJ32: 26757.5 | AK32: 0 | AL32: 0 | AM32: 0.05 | AN32: 0 | AO32: 0 | AQ32: 141.09 | AS32: 0 | AT32: 0.015 | AU32: =AS32/AQ32*100 -> 0 | AV32: 228.54 | AW32: 3428.1 | AX32: 555.64 | AY32: 8334.6 | AZ32: 0.007 | BA32: 3889.48 | BB32: 243.1259298 | BC32: 113.4587672 | BD32: 220.71 | BE32: 5076.33 | BF32: 0 | BG32: 0 | BH32: 0.01 | BI32: 0 | BJ32: =BF32/BD32*100 -> 0 | BK32: 0 | BL32: 101.12 | BM32: 7078.4 | BN32: 0 | BO32: 0 | BP32: 0.035 | BQ32: 0 | BR32: =BN32/BL32*100 -> 0 | BT32: 38.83 | BU32: 582.45 | BV32: 0 | BW32: 0 | BX32: 0.01 | BY32: 0 | BZ32: =BV32/BT32*100 -> 0 | CB32: 0.29 | CD32: 0 | CF32: =CD32/CB32*100 -> 0 | CG32: 3 | CH32: 120 | CI32: 2.92 | CJ32: 116.8 | CK32: 0.045 | CL32: 131.4 | CM32: =CI32/CG32*100 -> 97.33333333 | CN32: 109.5 | CO32: 228.54 | CP32: 3428.1 | CQ32: 277.02 | CR32: 8310.6 | CS32: 0.015 | CT32: 4155.3 | CU32: =CQ32/CO32*100 -> 121.2129168 | CV32: 121.2129168
A33: 23 | B33: Песчаное | C33: 192.89 | D33: 7715.6 | E33: 0 | F33: 0 | G33: 0.018 | H33: 0 | I33: =E33/C33*100 -> 0 | J33: =H33/D33*100 -> 0 | K33: 26.29 | L33: 1051.6 | M33: 64.29 | N33: 2571.6 | O33: 0.018 | P33: 1157.22 | Q33: =M33/K33*100 -> 244.5416508 | R33: =P33/L33*100 -> 110.0437429 | S33: 286.73 | T33: 8601.9 | U33: 0 | V33: 0 | W33: 0.017 | X33: 0 | Y33: =U33/S33*100 -> 0 | AA33: 62.31 | AB33: 2492.4 | AC33: 0 | AE33: 0.05 | AG33: =AC33/AA33*100 -> 0 | AI33: 226.3 | AJ33: 24893 | AK33: 0 | AL33: 0 | AM33: 0.05 | AN33: 0 | AO33: 0 | AQ33: 141.09 | AS33: 0 | AT33: 0.015 | AU33: =AS33/AQ33*100 -> 0 | AV33: 212.61 | AW33: 3189.15 | AX33: 530.87 | AY33: 7963.05 | AZ33: 0.007 | BA33: 3716.09 | BB33: 249.6919242 | BC33: 116.522898 | BD33: 220.71 | BE33: 5076.33 | BF33: 0 | BG33: 0 | BH33: 0.01 | BI33: 0 | BJ33: =BF33/BD33*100 -> 0 | BK33: 0 | BL33: 101.12 | BM33: 7078.4 | BN33: 0 | BO33: 0 | BP33: 0.035 | BQ33: 0 | BR33: =BN33/BL33*100 -> 0 | BT33: 38.83 | BU33: 582.45 | BV33: 0 | BW33: 0 | BX33: 0.01 | BY33: 0 | BZ33: =BV33/BT33*100 -> 0 | CB33: 0.29 | CD33: 0 | CF33: =CD33/CB33*100 -> 0 | CG33: 3 | CH33: 120 | CI33: 2.92 | CJ33: 116.8 | CK33: 0.045 | CL33: 131.4 | CM33: =CI33/CG33*100 -> 97.33333333 | CN33: 109.5 | CO33: 212.61 | CP33: 3189.15 | CQ33: 264.67 | CR33: 7940.1 | CS33: 0.015 | CT33: 3970.05 | CU33: =CQ33/CO33*100 -> 124.4861483 | CV33: 124.4861483
A34: 24 | B34: Набережный | C34: 192.89 | D34: 7715.6 | E34: 0 | F34: 0 | G34: 0.018 | H34: 0 | I34: =E34/C34*100 -> 0 | J34: =H34/D34*100 -> 0 | K34: 26.19 | L34: 1047.6 | M34: 70.09 | N34: 2803.6 | O34: 0.018 | P34: 1261.62 | Q34: =M34/K34*100 -> 267.6212295 | R34: =P34/L34*100 -> 120.4295533 | S34: 286.73 | T34: 8601.9 | U34: 0 | V34: 0 | W34: 0.017 | X34: 0 | Y34: =U34/S34*100 -> 0 | Z34: 0 | AA34: 62.31 | AB34: 2492.4 | AC34: 0 | AE34: 0.05 | AG34: =AC34/AA34*100 -> 0 | AI34: 225.61 | AJ34: 24817.1 | AK34: 0 | AL34: 0 | AM34: 0.05 | AN34: 0 | AO34: 0 | AQ34: 141.09 | AS34: 0 | AT34: 0.015 | AU34: =AS34/AQ34*100 -> 0 | AV34: 345.51 | AW34: 5182.65 | AX34: 0 | AY34: 0 | AZ34: 0.007 | BA34: 0 | BB34: 0 | BD34: 220.71 | BE34: 5076.33 | BF34: 0 | BG34: 0 | BH34: 0.01 | BI34: 0 | BJ34: =BF34/BD34*100 -> 0 | BK34: 0 | BL34: 101.12 | BM34: 7078.4 | BN34: 0 | BO34: 0 | BP34: 0.035 | BQ34: 0 | BR34: =BN34/BL34*100 -> 0 | BT34: 22.69 | BU34: 340.35 | BV34: 0 | BW34: 0 | BX34: 0.01 | BY34: 0 | BZ34: =BV34/BT34*100 -> 0 | CB34: 0.29 | CD34: 0 | CF34: =CD34/CB34*100 -> 0 | CG34: 3 | CH34: 120 | CI34: 2.92 | CJ34: 116.8 | CK34: 0.045 | CL34: 131.4 | CM34: =CI34/CG34*100 -> 97.33333333 | CN34: 109.5 | CO34: 345.51 | CP34: 5182.65 | CQ34: 288.55 | CR34: 8656.5 | CS34: 0.015 | CT34: 4328.25 | CU34: =CQ34/CO34*100 -> 83.51422535 | CV34: 83.51422535
J35: =AVERAGE(J31:J34) -> 0 | R35: =AVERAGE(R31:R34) -> 110.2848906 | Z35: =AVERAGE(Z31:Z34) -> 0 | AP35: =AVERAGE(AP31:AP34) -> 115.8217563 | BC35: =AVERAGE(BC31:BC34) -> 113.1970886 | BK35: =AVERAGE(BK31:BK34) -> 0 | BS35: =AVERAGE(BS31:BS34) -> 108.3451789 | CA35: 292.7318296 | CB35: 0.29 | CD35: 0 | CF35: 0 | CN35: 109.5 | CV35: 111.5785391
A36: 25 | B36: Новотырышкино | C36: 192.89 | D36: 7715.6 | E36: 365.57 | F36: =E36*0.04*1000 -> 14622.8 | G36: 0.028 | H36: =E36*G36*1000 -> 10235.96 | I36: =E36/C36*100 -> 189.5225258 | J36: =H36/D36*100 -> 132.6657681 | K36: 38.68 | L36: 1547.2 | M36: 56.52 | N36: 2260.8 | O36: 0.028 | P36: 1582.56 | Q36: =M36/K36*100 -> 146.1220269 | R36: =P36/L36*100 -> 102.2854188 | S36: 286.73 | T36: 8601.9 | U36: 431.68 | V36: 12950.4 | W36: 0.017 | X36: 7338.56 | Y36: =U36/S36*100 -> 150.5527848 | Z36: 85.31324475 | AA36: 62.31 | AB36: 2492.4 | AC36: 0 | AE36: 0.05 | AG36: =AC36/AA36*100 -> 0 | AI36: 332.94 | AJ36: 36623.4 | AK36: 538.9 | AL36: 59279 | AM36: 0.075 | AN36: 40417.5 | AO36: 161.860996 | AP36: 110.35977 | AQ36: 141.09 | AS36: 0 | AT36: 0.015 | AU36: =AS36/AQ36*100 -> 0 | AV36: 312.81 | AW36: 4692.15 | AX36: 466.71 | AY36: 7000.65 | AZ36: 0.011 | BA36: 5133.81 | BB36: 149.1991944 | BC36: 109.4127426 | BD36: 220.71 | BE36: 5076.33 | BF36: 444.35 | BG36: 10220.05 | BH36: 0.012 | BI36: 5332.2 | BJ36: =BF36/BD36*100 -> 201.3275339 | BK36: 105.0404525 | BL36: 100.29 | BM36: 7020.3 | BN36: 138.04 | BO36: 9662.8 | BP36: 0.055 | BQ36: 7592.2 | BR36: =BN36/BL36*100 -> 137.6408416 | BS36: 108.1463755 | BT36: 36.34 | BU36: 545.1 | BV36: 101.36 | BW36: 7095.2 | BX36: 0.01 | BY36: 1013.6 | BZ36: =BV36/BT36*100 -> 278.9212988 | CA36: 185.9475326 | CB36: 0.29 | CD36: 0 | CF36: =CD36/CB36*100 -> 0 | CG36: 3 | CH36: 120 | CI36: 2.92 | CJ36: 116.8 | CK36: 0.045 | CL36: 131.4 | CM36: =CI36/CG36*100 -> 97.33333333 | CN36: 109.5 | CO36: 312.81 | CP36: 4692.15 | CQ36: 232.68 | CR36: 6980.4 | CS36: 0.015 | CT36: 3490.2 | CU36: =CQ36/CO36*100 -> 74.38381126 | CV36: =CT36/CP36*100 -> 74.38381126
A37: 26 | B37: Южный | C37: 192.89 | D37: 7715.6 | E37: 0 | F37: 0 | G37: 0.028 | H37: 0 | I37: =E37/C37*100 -> 0 | K37: 18.33 | L37: 733.2 | M37: 46.81 | N37: 1872.4 | O37: 0.028 | P37: 1310.68 | Q37: =M37/K37*100 -> 255.3737043 | R37: =P37/L37*100 -> 178.761593 | S37: 286.73 | T37: 8601.9 | U37: 0 | V37: 0 | W37: 0.017 | X37: 0 | Y37: =U37/S37*100 -> 0 | AA37: 62.31 | AB37: 2492.4 | AC37: 0 | AE37: 0.05 | AG37: =AC37/AA37*100 -> 0 | AI37: 405.2 | AJ37: 44572 | AK37: 0 | AL37: 0 | AM37: 0.075 | AN37: 0 | AO37: 0 | AQ37: 141.09 | AS37: 0 | AT37: 0.015 | AU37: =AS37/AQ37*100 -> 0 | AV37: 148.24 | AW37: 2223.6 | AX37: 386.53 | AY37: 5797.95 | AZ37: 0.011 | BA37: 4251.83 | BB37: 260.7460874 | BC37: 191.2137974 | BD37: 220.71 | BE37: 5076.33 | BF37: 0 | BG37: 0 | BH37: 0.012 | BI37: 0 | BJ37: =BF37/BD37*100 -> 0 | BL37: 47.53 | BM37: 3327.1 | BN37: 0 | BO37: 0 | BP37: 0.055 | BQ37: 0 | BR37: =BN37/BL37*100 -> 0 | BT37: 38.83 | BU37: 582.45 | BV37: 83.95 | BW37: 5876.5 | BX37: 0.01 | BY37: 839.5 | BZ37: =BV37/BT37*100 -> 216.1988153 | CA37: 144.1325436 | CB37: 0.29 | CD37: 0 | CF37: =CD37/CB37*100 -> 0 | CG37: 3 | CH37: 120 | CI37: 2.92 | CJ37: 116.8 | CK37: 0.045 | CL37: 131.4 | CM37: =CI37/CG37*100 -> 97.33333333 | CN37: 109.5 | CO37: 148.24 | CP37: 2223.6 | CQ37: 0 | CR37: 0 | CS37: 0.015 | CT37: 0 | CU37: =CQ37/CO37*100 -> 0
J38: =AVERAGE(J36:J37) -> 132.6657681 | R38: =AVERAGE(R36:R37) -> 140.5235059 | Z38: =AVERAGE(Z36:Z37) -> 85.31324475 | AP38: =AVERAGE(AP36:AP37) -> 110.35977 | BC38: =AVERAGE(BC36:BC37) -> 150.31327 | BK38: =AVERAGE(BK36:BK37) -> 105.0404525 | BS38: =AVERAGE(BS36:BS37) -> 108.1463755 | CA38: 165.0400381 | CB38: 0.29 | CD38: 0 | CF38: 0 | CN38: 109.5 | CV38: 74.38381126
A39: 27 | B39: Солоновка | C39: 192.89 | D39: 7715.6 | E39: 0 | F39: =E39*0.04*1000 -> 0 | G39: 0.022 | H39: =E39*G39*1000 -> 0 | I39: =E39/C39*100 -> 0 | J39: 0 | K39: 22.51 | L39: 900.4 | M39: 41.91 | N39: 1676.4 | O39: 0.032 | P39: 1341.12 | Q39: =M39/K39*100 -> 186.1839183 | R39: =P39/L39*100 -> 148.9471346 | S39: 286.73 | T39: 8601.9 | U39: 320.1 | V39: 9603 | W39: 0.017 | X39: 5441.7 | Y39: =U39/S39*100 -> 111.6381265 | Z39: 63.26160499 | AA39: 62.31 | AB39: 2492.4 | AC39: 0 | AE39: 0.05 | AG39: =AC39/AA39*100 -> 0 | AI39: 193.76 | AJ39: 21313.6 | AK39: 399.6 | AL39: 43956 | AM39: 0.06 | AN39: 23976 | AO39: 206.2345169 | AP39: 112.4915547 | AQ39: 141.09 | AS39: 0 | AT39: 0.015 | AU39: =AS39/AQ39*100 -> 0 | AV39: 182.04 | AW39: 2730.6 | AX39: 0 | AY39: 0 | AZ39: 0.009 | BA39: 0 | BB39: 0 | BD39: 199.17 | BE39: 4580.91 | BF39: 329.49 | BG39: 7578.27 | BH39: 0.01 | BI39: 3294.9 | BJ39: =BF39/BD39*100 -> 165.4315409 | BK39: 71.92675691 | BL39: 58.36 | BM39: 4085.2 | BN39: 102.36 | BO39: 7165.2 | BP39: 0.04 | BQ39: 4094.4 | BR39: =BN39/BL39*100 -> 175.3941056 | BS39: 100.2252032 | BT39: 21.15 | BU39: 317.25 | BV39: 75.16 | BW39: 5261.2 | BX39: 0.01 | BY39: 751.6 | BZ39: =BV39/BT39*100 -> 355.3664303 | CA39: 236.9109535 | CB39: 0.29 | CD39: 0 | CF39: =CD39/CB39*100 -> 0 | CG39: 3 | CH39: 120 | CI39: 2.92 | CJ39: 116.8 | CK39: 0.045 | CL39: 131.4 | CM39: =CI39/CG39*100 -> 97.33333333 | CN39: 109.5 | CO39: 182.04 | CP39: 2730.6 | CQ39: 172.54 | CR39: 5176.2 | CS39: 0.015 | CT39: 2588.1 | CU39: =CQ39/CO39*100 -> 94.78136673 | CV39: =CT39/CP39*100 -> 94.78136673
A40: 28 | B40: Красный Городок | C40: 192.89 | D40: 7715.6 | E40: 0 | F40: 0 | G40: 0.022 | H40: 0 | I40: =E40/C40*100 -> 0 | J40: 0 | K40: 19.61 | L40: 784.4 | M40: 37.41 | N40: 1496.4 | O40: 0.032 | P40: 1197.12 | Q40: =M40/K40*100 -> 190.7700153 | R40: =P40/L40*100 -> 152.6160122 | S40: 286.73 | T40: 8601.9 | U40: 0 | V40: 0 | W40: 0.017 | X40: 0 | Y40: =U40/S40*100 -> 0 | AA40: 62.31 | AB40: 2492.4 | AC40: 0 | AE40: 0.05 | AG40: =AC40/AA40*100 -> 0 | AI40: 172.47 | AJ40: 18971.7 | AK40: 0 | AL40: 0 | AM40: 0.06 | AN40: 0 | AO40: 0 | AQ40: 128.37 | AS40: 0 | AT40: 0.015 | AU40: =AS40/AQ40*100 -> 0 | AV40: 167.34 | AW40: 2510.1 | AX40: 308.91 | AY40: 4633.65 | AZ40: 0.009 | BA40: 2780.19 | BB40: 184.6002151 | BC40: 110.7601291 | BD40: 199.17 | BE40: 4580.91 | BF40: 0 | BG40: 0 | BH40: 0.01 | BI40: 0 | BJ40: =BF40/BD40*100 -> 0 | BL40: 56.85 | BM40: 3979.5 | BN40: 0 | BO40: 0 | BP40: 0.04 | BQ40: 0 | BR40: =BN40/BL40*100 -> 0 | BT40: 21.15 | BU40: 317.25 | BV40: 0 | BW40: 0 | BX40: 0.01 | BY40: 0 | BZ40: =BV40/BT40*100 -> 0 | CB40: 0.29 | CD40: 0 | CF40: =CD40/CB40*100 -> 0 | CG40: 3 | CH40: 120 | CI40: 2.92 | CJ40: 116.8 | CK40: 0.045 | CL40: 131.4 | CM40: =CI40/CG40*100 -> 97.33333333 | CN40: 109.5 | CO40: 167.34 | CP40: 2510.1 | CQ40: 154.01 | CR40: 4620.3 | CS40: 0.015 | CT40: 2310.15 | CU40: =CQ40/CO40*100 -> 92.03418191 | CV40: 92.03418191
J41: =AVERAGE(J39:J40) -> 0 | R41: =AVERAGE(R39:R40) -> 150.7815734 | Z41: =AVERAGE(Z39:Z40) -> 63.26160499 | AP41: =AVERAGE(AP39:AP40) -> 112.4915547 | BC41: =AVERAGE(BC39:BC40) -> 110.7601291 | BK41: =AVERAGE(BK39:BK40) -> 71.92675691 | BS41: =AVERAGE(BS39:BS40) -> 100.2252032 | CA41: 236.9109535 | CB41: 0.29 | CD41: 0 | CF41: 0 | CN41: 109.5 | CV41: 93.40777432
A42: 29 | B42: Сычевка | C42: 192.89 | D42: 7715.6 | E42: 347.07 | F42: =E42*0.04*1000 -> 13882.8 | G42: 0.02 | H42: =E42*G42*1000 -> 6941.4 | I42: =E42/C42*100 -> 179.9315672 | J42: =H42/D42*100 -> 89.96578361 | K42: 25.63 | L42: 1025.2 | M42: 53.66 | N42: 2146.4 | O42: 0.025 | P42: 1341.5 | Q42: =M42/K42*100 -> 209.3640265 | R42: =P42/L42*100 -> 130.8525166 | S42: 286.73 | T42: 8601.9 | U42: 0 | V42: 0 | W42: 0.017 | X42: 0 | Y42: =U42/S42*100 -> 0 | AA42: 62.31 | AB42: 2492.4 | AC42: 0 | AE42: 0.05 | AG42: =AC42/AA42*100 -> 0 | AI42: 220.61 | AJ42: 24267.1 | AK42: 511.63 | AL42: 56279.3 | AM42: 0.05 | AN42: 25581.5 | AO42: 231.9160509 | AP42: 105.4163868 | AQ42: 141.09 | AS42: 0 | AT42: 0.015 | AU42: =AS42/AQ42*100 -> 0 | AV42: 207.27 | AW42: 3109.05 | AX42: 443.09 | AY42: 6646.35 | AZ42: 0.008 | BA42: 3544.72 | BB42: 213.774304 | BC42: 114.0129622 | BD42: 220.71 | BE42: 5076.33 | BF42: 0 | BG42: 0 | BH42: 0.01 | BI42: 0 | BJ42: =BF42/BD42*100 -> 0 | BL42: 66.45 | BM42: 4651.5 | BN42: 131.05 | BO42: 9173.5 | BP42: 0.04 | BQ42: 5242 | BR42: =BN42/BL42*100 -> 197.2159518 | BS42: 112.6948296 | BT42: 24.08 | BU42: 361.2 | BV42: 96.23 | BW42: 6736.1 | BX42: 0.01 | BY42: 962.3 | BZ42: =BV42/BT42*100 -> 399.6262458 | CA42: 266.4174972 | CB42: 0.29 | CD42: 0 | CF42: =CD42/CB42*100 -> 0 | CG42: 3 | CH42: 120 | CI42: 2.92 | CJ42: 116.8 | CK42: 0.045 | CL42: 131.4 | CM42: =CI42/CG42*100 -> 97.33333333 | CN42: 109.5 | CO42: 207.27 | CP42: 3109.05 | CQ42: 220.91 | CR42: 6627.3 | CS42: 0.015 | CT42: 3313.65 | CU42: =CQ42/CO42*100 -> 106.5807883 | CV42: =CT42/CP42*100 -> 106.5807883
A43: 30 | B43: Черновая | C43: 192.89 | D43: 7715.6 | E43: 0 | F43: 0 | G43: 0.02 | H43: 0 | I43: =E43/C43*100 -> 0 | J43: =H43/D43*100 -> 0 | K43: 19.05 | L43: 762 | M43: 42.47 | N43: 1698.8 | O43: 0.025 | P43: 1061.75 | Q43: =M43/K43*100 -> 222.9396325 | R43: =P43/L43*100 -> 139.3372703 | S43: 128.19 | T43: 3845.7 | U43: 0 | V43: 0 | W43: 0.017 | X43: 0 | Y43: =U43/S43*100 -> 0 | AA43: 62.31 | AB43: 2492.4 | AC43: 0 | AE43: 0.05 | AG43: =AC43/AA43*100 -> 0 | AI43: 163.98 | AJ43: 18037.8 | AK43: 404.94 | AL43: 44543.4 | AM43: 0.05 | AN43: 20247 | AO43: 246.9447494 | AP43: 112.2476133 | AQ43: 141.09 | AS43: 0 | AT43: 0.015 | AU43: =AS43/AQ43*100 -> 0 | AV43: 154.06 | AW43: 2310.9 | AX43: 350.69 | AY43: 5260.35 | AZ43: 0.008 | BA43: 2805.52 | BB43: 227.6320914 | BC43: 121.4037821 | BD43: 168.56 | BE43: 3876.88 | BF43: 0 | BG43: 0 | BH43: 0.01 | BI43: 0 | BJ43: =BF43/BD43*100 -> 0 | BL43: 49.39 | BM43: 3457.3 | BN43: 103.73 | BO43: 7261.1 | BP43: 0.04 | BQ43: 4149.2 | BR43: =BN43/BL43*100 -> 210.0222717 | BS43: 120.0127267 | BT43: 17.9 | BU43: 268.5 | BV43: 76.16 | BW43: 5331.2 | BX43: 0.01 | BY43: 761.6 | BZ43: =BV43/BT43*100 -> 425.4748603 | CA43: 283.6499069 | CB43: 0.29 | CD43: 0 | CF43: =CD43/CB43*100 -> 0 | CG43: 3 | CH43: 120 | CI43: 2.92 | CJ43: 116.8 | CK43: 0.045 | CL43: 131.4 | CM43: =CI43/CG43*100 -> 97.33333333 | CN43: 109.5 | CO43: 154.06 | CP43: 2310.9 | CQ43: 174.84 | CR43: 5245.2 | CS43: 0.015 | CT43: 2622.6 | CU43: =CQ43/CO43*100 -> 113.4882513 | CV43: 113.4882513
J44: =AVERAGE(J42:J43) -> 44.9828918 | R44: =AVERAGE(R42:R43) -> 135.0948935 | AP44: =AVERAGE(AP42:AP43) -> 108.8320001 | BC44: =AVERAGE(BC42:BC43) -> 117.7083721 | BS44: =AVERAGE(BS42:BS43) -> 116.3537782 | CA44: 275.0337021 | CB44: 0.29 | CD44: 0 | CF44: 0 | CN44: 109.5 | CV44: 110.0345198
A45: 31 | B45: Точильное | C45: 192.89 | D45: 7715.6 | E45: 0 | F45: =E45*0.04*1000 -> 0 | G45: 0.017 | H45: =E45*G45*1000 -> 0 | I45: =E45/C45*100 -> 0 | J45: =H45/D45*100 -> 0 | K45: 29.53 | L45: 1181.2 | M45: 71.2 | N45: 2848 | O45: 0.019 | P45: 1352.8 | Q45: =M45/K45*100 -> 241.1107348 | R45: =P45/L45*100 -> 114.5275991 | S45: 286.73 | T45: 8601.9 | U45: 543.8 | V45: 16314 | W45: 0.017 | X45: 9244.6 | Y45: =U45/S45*100 -> 189.6557737 | Z45: 107.4716051 | AA45: 62.31 | AB45: 2492.4 | AC45: 0 | AE45: 0.05 | AG45: =AVERAGE(AG43:AG44) -> 0 | AI45: 254.18 | AJ45: 27959.8 | AK45: 678.87 | AL45: 74675.7 | AM45: 0.05 | AN45: 33943.5 | AO45: 267.0823826 | AP45: =AN45/AJ45*100 -> 121.401083 | AQ45: 141.09 | AS45: 0 | AT45: 0.015 | AU45: =AS45/AQ45*100 -> 0 | AV45: 238.81 | AW45: 3582.15 | AX45: 587.92 | AY45: 8818.8 | AZ45: 0.007 | BA45: 4115.44 | BB45: 246.1873456 | BC45: 114.8874279 | BD45: 220.71 | BE45: 5076.33 | BF45: 0 | BG45: 0 | BH45: 0.01 | BI45: 0 | BJ45: =BF45/BD45*100 -> 0 | BL45: 76.56 | BM45: 5359.2 | BN45: 173.89 | BO45: 12172.3 | BP45: 0.035 | BQ45: 6086.15 | BR45: =BN45/BL45*100 -> 227.1290491 | BS45: =BQ45/BM45*100 -> 113.5645246 | BT45: 27.75 | BU45: 416.25 | BV45: 127.69 | BW45: 8938.3 | BX45: 0.01 | BY45: 1276.9 | BZ45: =BV45/BT45*100 -> 460.1441441 | CB45: 0.29 | CD45: 0 | CF45: =CD45/CB45*100 -> 0 | CG45: 3 | CH45: 120 | CI45: 2.92 | CJ45: 116.8 | CK45: 0.045 | CL45: 131.4 | CM45: =CI45/CG45*100 -> 97.33333333 | CN45: 109.5 | CO45: 238.81 | CP45: 3582.15 | CQ45: 293.12 | CR45: 8793.6 | CS45: 0.015 | CT45: 4396.8 | CU45: =CQ45/CO45*100 -> 122.7419287 | CV45: =CT45/CP45*100 -> 122.7419287

Sheet Лист3

Sheet Лист4
